Workbook

Sheet LevelBattleConfig
A1: ID | C1: levelName | D1: MonsterWavesConfigId | E1: monsterLv | F1: monsterStar | G1: miniExpAndGold | H1: eliteExpAndGold | I1: bossExpAndGold | J1: miniMonsterItem | K1: eliteMonsterItem | L1: BossMonsterWavesId | M1: bossLv | P1: bossStar | Q1: bossMonsterId | R1: bossItem | S1: exp
A2: int | C2: string | D2: int[] | E2: int | F2: int | G2: int[] | H2: int | I2: int | J2: int[] | K2: int[] | L2: int | M2: int | P2: int | Q2: int | R2: int[] | S2: int
A4: ID | B4: 描述 | C4: 关卡名 | D4: 这个节点内可以刷的怪物组 | E4: 等级 | F4: 星级 | G4: 小怪经验和金币产出 | H4: 精英经验和金币产出 | I4: boss经验和金币产出 | J4: 打死小怪可以获得的奖励 | K4: 杀死精英怪可以获得的奖励 | L4: 大boss的时候使用的波ID | M4: boss等级 | P4: boss星级 | Q4: boss怪物ID | R4: 打死boss可以获得的奖励 | S4: 获得多少经验杀boss
A5: 1 | C5: 1-1 | D5: 1;2;3;4 | E5: 1 | F5: 1 | G5: 2 | H5: 2 | I5: 24 | J5: 10007;10011;10014 | K5: 10005;10012;10014 | L5: 0 | M5: =ROUND(N5+O5,0) -> 1 | N5: 1 | O5: 0 | P5: 1 | Q5: 9000110 | R5: 10006;10013;10014 | S5: 60
A6: 2 | C6: 1-2 | D6: 4;5 | E6: =M5 -> 1 | F6: 1 | G6: 2 | H6: 2 | I6: 32 | J6: 10007;10011;10014 | K6: 10005;10012;10014 | L6: 0 | M6: =ROUND(N6+O6,0) -> 3 | N6: 3 | O6: 0 | P6: 1 | Q6: 9000110 | R6: 10006;10013;10014 | S6: 80
A7: 3 | C7: 1-3 | D7: 4;6 | E7: =M6 -> 3 | F7: 2 | G7: 12 | H7: 12 | I7: 44 | J7: 10007;10011;10014 | K7: 10005;10012;10014 | L7: 0 | M7: 10 | N7: 10 | O7: 0 | P7: 2 | Q7: 9000103 | R7: 10006;10013;10014 | S7: 100
A8: 4 | C8: 1-4 | D8: 4;7 | E8: 10 | F8: 2 | G8: 15 | H8: 12 | I8: 58 | J8: 10007;10011;10014 | K8: 10005;10012;10014 | L8: 0 | M8: 15 | N8: 15 | O8: 0 | P8: 2 | Q8: 9000106 | R8: 10006;10013;10014 | S8: 120
A9: 5 | C9: 1-5 | D9: 4;8 | E9: 15 | F9: 3 | G9: 18 | H9: 12 | I9: 78 | J9: 10007;10011;10014 | K9: 10005;10012;10014 | L9: 0 | M9: 22 | N9: 22 | O9: 0 | P9: 3 | Q9: 9000103 | R9: 10006;10013;10014 | S9: 140
A10: 6 | C10: 1-6 | D10: 4;9 | E10: 22 | F10: 3 | G10: 21 | H10: 12 | I10: 104 | J10: 10007;10011;10014 | K10: 10005;10012;10014 | L10: 0 | M10: 25 | N10: 25 | O10: 0 | P10: 3 | Q10: 9000106 | R10: 10006;10013;10014 | S10: 160
A11: 7 | C11: 1-7 | D11: 4;10 | E11: 25 | F11: 3 | G11: 24 | H11: 12 | I11: 138 | J11: 10007;10011;10014 | K11: 10005;10012;10014 | L11: 0 | M11: 28 | N11: 28 | O11: 0 | P11: 3 | Q11: 9000103 | R11: 10006;10013;10014 | S11: 180
A12: 8 | C12: 1-8 | D12: 4;11 | E12: 28 | F12: 3 | G12: 27 | H12: 22 | I12: 184 | J12: 10007;10011;10014 | K12: 10005;10012;10014 | L12: 0 | M12: 30 | N12: 30 | O12: 0 | P12: 3 | Q12: 9000106 | R12: 10006;10013;10014 | S12: 200
A13: 9 | C13: 1-9 | D13: 4;12 | E13: 30 | F13: 3 | G13: 30 | H13: 22 | I13: 244 | J13: 10007;10011;10014 | K13: 10005;10012;10014 | L13: 0 | M13: 32 | N13: 32 | O13: 0 | P13: 3 | Q13: 9000103 | R13: 10006;10013;10014 | S13: 220
A14: 10 | C14: 1-10 | D14: 4;13 | E14: 32 | F14: 4 | G14: 33 | H14: 22 | I14: 326 | J14: 10007;10011;10014 | K14: 10005;10012;10014 | L14: 0 | M14: 34 | N14: 34 | O14: 0 | P14: 3 | Q14: 9000106 | R14: 10006;10013;10014 | S14: 240
A15: 11 | C15: 1-11 | D15: 4;14 | E15: 34 | F15: 4 | G15: 36 | H15: 22 | I15: 434 | J15: 10007;10011;10014 | K15: 10005;10012;10014 | L15: 0 | M15: 36 | N15: 36 | O15: 0 | P15: 3 | Q15: 9000103 | R15: 10006;10013;10014 | S15: 260
A16: 12 | C16: 1-12 | D16: 4;15 | E16: 36 | F16: 4 | G16: 39 | H16: 22 | I16: 576 | J16: 10007;10011;10014 | K16: 10005;10012;10014 | L16: 0 | M16: 38 | N16: 38 | O16: 0 | P16: 3 | Q16: 9000106 | R16: 10006;10013;10014 | S16: 280
A17: 13 | C17: 1-13 | D17: 4;16 | E17: 38 | F17: 4 | G17: 42 | H17: 32 | I17: 764 | J17: 10007;10011;10014 | K17: 10005;10012;10014 | L17: 0 | M17: 39 | N17: 39 | O17: 0 | P17: 3 | Q17: 9000103 | R17: 10006;10013;10014 | S17: 300
A18: 14 | C18: 1-14 | D18: 4;17 | E18: 39 | F18: 4 | G18: 45 | H18: 32 | I18: 1010 | J18: 10007;10011;10014 | K18: 10005;10012;10014 | L18: 0 | M18: 40 | N18: 40 | O18: 0 | P18: 3 | Q18: 9000106 | R18: 10006;10013;10014 | S18: 320
A19: 15 | C19: 1-15 | D19: 4;18 | E19: 40 | F19: 4 | G19: 48 | H19: 32 | I19: 1332 | J19: 10007;10011;10014 | K19: 10005;10012;10014 | L19: 0 | M19: 43 | N19: 42 | O19: 1.1 | P19: 3 | Q19: 9000103 | R19: 10006;10013;10014 | S19: 340
A20: 16 | C20: 1-16 | D20: 4;19 | E20: 43 | F20: 4 | G20: 51 | H20: 32 | I20: 1754 | J20: 10007;10011;10014 | K20: 10005;10012;10014 | L20: 0 | M20: 44 | N20: 43 | O20: 1.2 | P20: 3 | Q20: 9000106 | R20: 10006;10013;10014 | S20: 360
A21: 17 | C21: 1-17 | D21: 4;20 | E21: 44 | F21: 4 | G21: 54 | H21: 32 | I21: 2306 | J21: 10007;10011;10014 | K21: 10005;10012;10014 | L21: 0 | M21: 45 | N21: 44 | O21: 1.3 | P21: 3 | Q21: 9000103 | R21: 10006;10013;10014 | S21: 380
A22: 18 | C22: 1-18 | D22: 4;21 | E22: 45 | F22: 4 | G22: 57 | H22: 42 | I22: 3026 | J22: 10007;10011;10014 | K22: 10005;10012;10014 | L22: 0 | M22: 46 | N22: 45 | O22: 1.4 | P22: 4 | Q22: 9000106 | R22: 10006;10013;10014 | S22: 400
A23: 19 | C23: 1-19 | D23: 4;22 | E23: 46 | F23: 5 | G23: 60 | H23: 42 | I23: 3962 | J23: 10007;10011;10014 | K23: 10005;10012;10014 | L23: 0 | M23: 49 | N23: 47 | O23: 1.5 | P23: 4 | Q23: 9000103 | R23: 10006;10013;10014 | S23: 420
A24: 20 | C24: 1-20 | D24: 4;23 | E24: 49 | F24: 5 | G24: 63 | H24: 42 | I24: 5176 | J24: 10007;10011;10014 | K24: 10005;10012;10014 | L24: 0 | M24: 50 | N24: 48 | O24: 1.6 | P24: 4 | Q24: 9000106 | R24: 10006;10013;10014 | S24: 440
A25: 21 | C25: 1-21 | D25: 4;24 | E25: 50 | F25: 5 | G25: 66 | H25: 42 | I25: 6750 | J25: 10007;10011;10014 | K25: 10005;10012;10014 | L25: 0 | M25: 51 | N25: 49 | O25: 1.7 | P25: 4 | Q25: 9000103 | R25: 10006;10013;10014 | S25: 460
A26: 22 | C26: 1-22 | D26: 4;25 | E26: 51 | F26: 5 | G26: 69 | H26: 42 | I26: 8784 | J26: 10007;10011;10014 | K26: 10005;10012;10014 | L26: 0 | M26: 52 | N26: 50 | O26: 1.8 | P26: 4 | Q26: 9000106 | R26: 10006;10013;10014 | S26: 480
A27: 23 | C27: 1-23 | D27: 4;26 | E27: 52 | F27: 5 | G27: 72 | H27: 51 | I27: 11390 | J27: 10007;10011;10014 | K27: 10005;10012;10014 | L27: 0 | M27: 53 | N27: 51 | O27: 1.9 | P27: 4 | Q27: 9000103 | R27: 10006;10013;10014 | S27: 500
A28: 24 | C28: 1-24 | D28: 4;27 | E28: 53 | F28: 5 | G28: 75 | H28: 51 | I28: 14710 | J28: 10007;10011;10014 | K28: 10005;10012;10014 | L28: 0 | M28: 53 | N28: 51 | O28: 2 | P28: 4 | Q28: 9000106 | R28: 10006;10013;10014 | S28: 520
A29: 25 | C29: 1-25 | D29: 4;28 | E29: 53 | F29: 5 | G29: 78 | H29: 51 | I29: 18922 | J29: 10007;10011;10014 | K29: 10005;10012;10014 | L29: 0 | M29: 54 | N29: 52 | O29: 2.1 | P29: 4 | Q29: 9000103 | R29: 10006;10013;10014 | S29: 540
A30: 26 | C30: 1-26 | D30: 4;29 | E30: 54 | F30: 5 | G30: 81 | H30: 51 | I30: 24242 | J30: 10007;10011;10014 | K30: 10005;10012;10014 | L30: 0 | M30: 55 | N30: 53 | O30: 2.2 | P30: 4 | Q30: 9000106 | R30: 10006;10013;10014 | S30: 560
A31: 27 | C31: 1-27 | D31: 4;30 | E31: 55 | F31: 5 | G31: 84 | H31: 51 | I31: 30934 | J31: 10007;10011;10014 | K31: 10005;10012;10014 | L31: 0 | M31: 56 | N31: 54 | O31: 2.3 | P31: 4 | Q31: 9000103 | R31: 10006;10013;10014 | S31: 580
A32: 28 | C32: 1-28 | D32: 4;31 | E32: 56 | F32: 5 | G32: 87 | H32: 61 | I32: 39318 | J32: 10007;10011;10014 | K32: 10005;10012;10014 | L32: 0 | M32: 57 | N32: 55 | O32: 2.4 | P32: 4 | Q32: 9000106 | R32: 10006;10013;10014 | S32: 600
A33: 29 | C33: 1-29 | D33: 4;32 | E33: 57 | F33: 5 | G33: 90 | H33: 61 | I33: 49774 | J33: 10007;10011;10014 | K33: 10005;10012;10014 | L33: 0 | M33: 59 | N33: 56 | O33: 2.5 | P33: 4 | Q33: 9000103 | R33: 10006;10013;10014 | S33: 620
A34: 30 | C34: 1-30 | D34: 4;33 | E34: 59 | F34: 5 | G34: 93 | H34: 61 | I34: 62758 | J34: 10007;10011;10014 | K34: 10005;10012;10014 | L34: 0 | M34: 59 | N34: 56 | O34: 2.6 | P34: 4 | Q34: 9000106 | R34: 10006;10013;10014 | S34: 640
A35: 31 | C35: 1-31 | D35: 4;34 | E35: 59 | F35: 6 | G35: 96 | H35: 61 | I35: 78814 | J35: 10007;10011;10014 | K35: 10005;10012;10014 | L35: 0 | M35: 60 | N35: 57 | O35: 2.7 | P35: 4 | Q35: 9000103 | R35: 10006;10013;10014 | S35: 660
A36: 32 | C36: 1-32 | D36: 4;35 | E36: 60 | F36: 6 | G36: 99 | H36: 61 | I36: 98584 | J36: 10007;10011;10014 | K36: 10005;10012;10014 | L36: 0 | M36: 61 | N36: 58 | O36: 2.8 | P36: 4 | Q36: 9000106 | R36: 10006;10013;10014 | S36: 680
A37: 33 | C37: 1-33 | D37: 4;36 | E37: 61 | F37: 6 | G37: 102 | H37: 71 | I37: 122820 | J37: 10007;10011;10014 | K37: 10005;10012;10014 | L37: 0 | M37: 62 | N37: 59 | O37: 2.9 | P37: 4 | Q37: 9000103 | R37: 10006;10013;10014 | S37: 700
A38: 34 | C38: 1-34 | D38: 4;37 | E38: 62 | F38: 6 | G38: 105 | H38: 71 | I38: 152402 | J38: 10007;10011;10014 | K38: 10005;10012;10014 | L38: 0 | M38: 62 | N38: 59 | O38: 3 | P38: 4 | Q38: 9000106 | R38: 10006;10013;10014 | S38: 720
A39: 35 | C39: 1-35 | D39: 4;38 | E39: =M38 -> 62 | F39: 6 | G39: 108 | H39: 71 | I39: 188354 | J39: 10007;10011;10014 | K39: 10005;10012;10014 | L39: 0 | M39: 63 | N39: 60 | O39: 3.1 | P39: 4 | Q39: 9000103 | R39: 10006;10013;10014 | S39: 740
A40: 36 | C40: 1-36 | D40: 4;39 | E40: 63 | F40: 6 | G40: 111 | H40: 71 | I40: 231858 | J40: 10007;10011;10014 | K40: 10005;10012;10014 | L40: 0 | M40: 64 | N40: 61 | O40: 3.2 | P40: 4 | Q40: 9000106 | R40: 10006;10013;10014 | S40: 760
A41: 37 | C41: 1-37 | D41: 4;40 | E41: 64 | F41: 6 | G41: 114 | H41: 71 | I41: 284270 | J41: 10007;10011;10014 | K41: 10005;10012;10014 | L41: 0 | M41: 64 | N41: 61 | O41: 3.3 | P41: 4 | Q41: 9000103 | R41: 10006;10013;10014 | S41: 780
A42: 38 | C42: 1-38 | D42: 4;41 | E42: 64 | F42: 6 | G42: 117 | H42: 81 | I42: 347138 | J42: 10007;10011;10014 | K42: 10005;10012;10014 | L42: 0 | M42: 65 | N42: 62 | O42: 3.4 | P42: 4 | Q42: 9000106 | R42: 10006;10013;10014 | S42: 800
A43: 39 | C43: 1-39 | D43: 4;42 | E43: 65 | F43: 6 | G43: 120 | H43: 81 | I43: 422218 | J43: 10007;10011;10014 | K43: 10005;10012;10014 | L43: 0 | M43: 66 | N43: 62 | O43: 3.5 | P43: 4 | Q43: 9000103 | R43: 10006;10013;10014 | S43: 820
A44: 40 | C44: 1-40 | D44: 4;43 | E44: 66 | F44: 6 | G44: 123 | H44: 81 | I44: 511486 | J44: 10007;10011;10014 | K44: 10005;10012;10014 | L44: 0 | M44: 67 | N44: 63 | O44: 3.6 | P44: 4 | Q44: 9000106 | R44: 10006;10013;10014 | S44: 840
A45: 41 | C45: 1-41 | D45: 4;44 | E45: 67 | F45: 6 | G45: 126 | H45: 81 | I45: 617152 | J45: 10007;10011;10014 | K45: 10005;10012;10014 | L45: 0 | M45: 68 | N45: 64 | O45: 3.7 | P45: 4 | Q45: 9000103 | R45: 10006;10013;10014 | S45: 860
A46: 42 | C46: 1-42 | D46: 4;45 | E46: 68 | F46: 6 | G46: 129 | H46: 81 | I46: 741672 | J46: 10007;10011;10014 | K46: 10005;10012;10014 | L46: 0 | M46: 68 | N46: 64 | O46: 3.8 | P46: 4 | Q46: 9000106 | R46: 10006;10013;10014 | S46: 880
A47: 43 | C47: 1-43 | D47: 4;46 | E47: 68 | F47: 6 | G47: 132 | H47: 91 | I47: 887758 | J47: 10007;10011;10014 | K47: 10005;10012;10014 | L47: 0 | M47: 69 | N47: 65 | O47: 3.9 | P47: 4 | Q47: 9000103 | R47: 10006;10013;10014 | S47: 900
A48: 44 | C48: 1-44 | D48: 4;47 | E48: 69 | F48: 6 | G48: 135 | H48: 91 | I48: 1058374 | J48: 10007;10011;10014 | K48: 10005;10012;10014 | L48: 0 | M48: 69 | N48: 65 | O48: 4 | P48: 4 | Q48: 9000106 | R48: 10006;10013;10014 | S48: 920
A49: 45 | C49: 1-45 | D49: 4;48 | E49: 69 | F49: 6 | G49: 138 | H49: 91 | I49: 1256740 | J49: 10007;10011;10014 | K49: 10005;10012;10014 | L49: 0 | M49: 70 | N49: 66 | O49: 4.1 | P49: 4 | Q49: 9000103 | R49: 10006;10013;10014 | S49: 940
A50: 46 | C50: 1-46 | D50: 4;49 | E50: 70 | F50: 6 | G50: 141 | H50: 91 | I50: 1486324 | J50: 10007;10011;10014 | K50: 10005;10012;10014 | L50: 0 | M50: 70 | N50: 66 | O50: 4.2 | P50: 4 | Q50: 9000106 | R50: 10006;10013;10014 | S50: 960
A51: 47 | C51: 1-47 | D51: 4;50 | E51: 70 | F51: 6 | G51: 144 | H51: 91 | I51: 1750830 | J51: 10007;10011;10014 | K51: 10005;10012;10014 | L51: 0 | M51: 71 | N51: 67 | O51: 4.3 | P51: 4 | Q51: 9000103 | R51: 10006;10013;10014 | S51: 980
A52: 48 | C52: 1-48 | D52: 4;51 | E52: 71 | F52: 6 | G52: 147 | H52: 101 | I52: 2054168 | J52: 10007;10011;10014 | K52: 10005;10012;10014 | L52: 0 | M52: 71 | N52: 67 | O52: 4.4 | P52: 4 | Q52: 9000106 | R52: 10006;10013;10014 | S52: 1000
A53: 49 | C53: 1-49 | D53: 4;52 | E53: 71 | F53: 6 | G53: 150 | H53: 101 | I53: 2400436 | J53: 10007;10011;10014 | K53: 10005;10012;10014 | L53: 0 | M53: 73 | N53: 68 | O53: 4.5 | P53: 4 | Q53: 9000103 | R53: 10006;10013;10014 | S53: 1020
A54: 50 | C54: 1-50 | D54: 4;53 | E54: 73 | F54: 6 | G54: 153 | H54: 101 | I54: 2793870 | J54: 10007;10011;10014 | K54: 10005;10012;10014 | L54: 0 | M54: 74 | N54: 69 | O54: 4.6 | P54: 4 | Q54: 9000106 | R54: 10006;10013;10014 | S54: 1040
A55: 51 | C55: 1-51 | D55: 4;54 | E55: 74 | F55: 6 | G55: 156 | H55: 101 | I55: 3238800 | J55: 10007;10011;10014 | K55: 10005;10012;10014 | L55: 0 | M55: 74 | N55: 69 | O55: 4.7 | P55: 4 | Q55: 9000103 | R55: 10006;10013;10014 | S55: 1060
A56: 52 | C56: 1-52 | D56: 4;55 | E56: 74 | F56: 6 | G56: 159 | H56: 101 | I56: 3739590 | J56: 10007;10011;10014 | K56: 10005;10012;10014 | L56: 0 | M56: 75 | N56: 70 | O56: 4.8 | P56: 4 | Q56: 9000106 | R56: 10006;10013;10014 | S56: 1080
A57: 53 | C57: 1-53 | D57: 4;56 | E57: 75 | F57: 6 | G57: 162 | H57: 111 | I57: 4300568 | J57: 10007;10011;10014 | K57: 10005;10012;10014 | L57: 0 | M57: 75 | N57: 70 | O57: 4.9 | P57: 4 | Q57: 9000103 | R57: 10006;10013;10014 | S57: 1100
A58: 54 | C58: 1-54 | D58: 4;57 | E58: 75 | F58: 6 | G58: 165 | H58: 111 | I58: 4925946 | J58: 10007;10011;10014 | K58: 10005;10012;10014 | L58: 0 | M58: 75 | N58: 70 | O58: 5 | P58: 4 | Q58: 9000106 | R58: 10006;10013;10014 | S58: 1120
A59: 55 | C59: 1-55 | D59: 4;58 | E59: 75 | F59: 6 | G59: 168 | H59: 111 | I59: 5619730 | J59: 10007;10011;10014 | K59: 10005;10012;10014 | L59: 0 | M59: 76 | N59: 71 | O59: 5.1 | P59: 4 | Q59: 9000103 | R59: 10006;10013;10014 | S59: 1140
A60: 56 | C60: 1-56 | D60: 4;59 | E60: 76 | F60: 6 | G60: 171 | H60: 111 | I60: 6385622 | J60: 10007;10011;10014 | K60: 10005;10012;10014 | L60: 0 | M60: 76 | N60: 71 | O60: 5.2 | P60: 4 | Q60: 9000106 | R60: 10006;10013;10014 | S60: 1160
A61: 57 | C61: 1-57 | D61: 4;60 | E61: 76 | F61: 6 | G61: 174 | H61: 111 | I61: 7226914 | J61: 10007;10011;10014 | K61: 10005;10012;10014 | L61: 0 | M61: 77 | N61: 72 | O61: 5.3 | P61: 4 | Q61: 9000103 | R61: 10006;10013;10014 | S61: 1180
A62: 58 | C62: 1-58 | D62: 4;61 | E62: 77 | F62: 6 | G62: 177 | H62: 121 | I62: 8146376 | J62: 10007;10011;10014 | K62: 10005;10012;10014 | L62: 0 | M62: 77 | N62: 72 | O62: 5.4 | P62: 4 | Q62: 9000103 | R62: 10006;10013;10014 | S62: 1200
A63: 59 | C63: 1-59 | D63: 4;62 | E63: 77 | F63: 6 | G63: 180 | H63: 121 | I63: 9146144 | J63: 10007;10011;10014 | K63: 10005;10012;10014 | L63: 0 | M63: 79 | N63: 73 | O63: 5.5 | P63: 4 | Q63: 9000103 | R63: 10006;10013;10014 | S63: 1220
A64: 60 | C64: 1-60 | D64: 4;63 | E64: 79 | F64: 6 | G64: 183 | H64: 121 | I64: 10227596 | J64: 10007;10011;10014 | K64: 10005;10012;10014 | L64: 0 | M64: 79 | N64: 73 | O64: 5.6 | P64: 4 | Q64: 9000103 | R64: 10006;10013;10014 | S64: 1240
A65: 61 | C65: 1-61 | D65: 4;64 | E65: 79 | F65: 6 | G65: 186 | H65: 121 | I65: 11391242 | J65: 10007;10011;10014 | K65: 10005;10012;10014 | L65: 0 | M65: 80 | N65: 74 | O65: 5.7 | P65: 4 | Q65: 9000103 | R65: 10006;10013;10014 | S65: 1260
A66: 62 | C66: 1-62 | D66: 4;65 | E66: 80 | F66: 6 | G66: 189 | H66: 121 | I66: 12636608 | J66: 10007;10011;10014 | K66: 10005;10012;10014 | L66: 0 | M66: 80 | N66: 74 | O66: 5.8 | P66: 4 | Q66: 9000103 | R66: 10006;10013;10014 | S66: 1280
A67: 63 | C67: 1-63 | D67: 4;66 | E67: 80 | F67: 6 | G67: 192 | H67: 131 | I67: 13962136 | J67: 10007;10011;10014 | K67: 10005;10012;10014 | L67: 0 | M67: 81 | N67: 75 | O67: 5.9 | P67: 4 | Q67: 9000103 | R67: 10006;10013;10014 | S67: 1300
A68: 64 | C68: 1-64 | D68: 4;67 | E68: 81 | F68: 6 | G68: 195 | H68: 131 | I68: 15365094 | J68: 10007;10011;10014 | K68: 10005;10012;10014 | L68: 0 | M68: 81 | N68: 75 | O68: 6 | P68: 4 | Q68: 9000103 | R68: 10006;10013;10014 | S68: 1320
A69: 65 | C69: 1-65 | D69: 4;68 | E69: 81 | F69: 6 | G69: 198 | H69: 131 | I69: 16841490 | J69: 10007;10011;10014 | K69: 10005;10012;10014 | L69: 0 | M69: 81 | N69: 75 | O69: 6.1 | P69: 4 | Q69: 9000103 | R69: 10006;10013;10014 | S69: 1340
A70: 66 | C70: 1-66 | D70: 4;69 | E70: 81 | F70: 7 | G70: 201 | H70: 131 | I70: 18386020 | J70: 10007;10011;10014 | K70: 10005;10012;10014 | L70: 0 | M70: =ROUND(N70+O70,0) -> 82 | N70: 76 | O70: 6.2 | P70: 4 | Q70: 9000103 | R70: 10006;10013;10014 | S70: 1360
A71: 67 | C71: 1-67 | D71: 4;70 | E71: =M70 -> 82 | F71: 7 | G71: 204 | H71: 131 | I71: 19992032 | J71: 10007;10011;10014 | K71: 10005;10012;10014 | L71: 0 | M71: 82 | N71: 76 | O71: 6.3 | P71: 4 | Q71: 9000103 | R71: 10006;10013;10014 | S71: 1380
A72: 68 | C72: 1-68 | D72: 4;71 | E72: 82 | F72: 7 | G72: 207 | H72: 141 | I72: 21651504 | J72: 10007;10011;10014 | K72: 10005;10012;10014 | L72: 0 | M72: 83 | N72: 77 | O72: 6.4 | P72: 5 | Q72: 9000103 | R72: 10006;10013;10014 | S72: 1400
A73: 69 | C73: 1-69 | D73: 4;72 | E73: 83 | F73: 7 | G73: 210 | H73: 141 | I73: 23355070 | J73: 10007;10011;10014 | K73: 10005;10012;10014 | L73: 0 | M73: 84 | N73: 77 | O73: 6.5 | P73: 5 | Q73: 9000103 | R73: 10006;10013;10014 | S73: 1420
A74: 70 | C74: 1-70 | D74: 4;73 | E74: 84 | F74: 7 | G74: 213 | H74: 141 | I74: 25092056 | J74: 10007;10011;10014 | K74: 10005;10012;10014 | L74: 0 | M74: 84 | N74: 77 | O74: 6.6 | P74: 5 | Q74: 9000103 | R74: 10006;10013;10014 | S74: 1440
A75: 71 | C75: 1-71 | D75: 4;74 | E75: 84 | F75: 7 | G75: 216 | H75: 141 | I75: 26850554 | J75: 10007;10011;10014 | K75: 10005;10012;10014 | L75: 0 | M75: 85 | N75: 78 | O75: 6.7 | P75: 5 | Q75: 9000103 | R75: 10006;10013;10014 | S75: 1460
A76: 72 | C76: 1-72 | D76: 4;75 | E76: 85 | F76: 7 | G76: 219 | H76: 141 | I76: 28617534 | J76: 10007;10011;10014 | K76: 10005;10012;10014 | L76: 0 | M76: 85 | N76: 78 | O76: 6.8 | P76: 5 | Q76: 9000103 | R76: 10006;10013;10014 | S76: 1480
A77: 73 | C77: 1-73 | D77: 4;76 | E77: 85 | F77: 7 | G77: 222 | H77: 150 | I77: 30378976 | J77: 10007;10011;10014 | K77: 10005;10012;10014 | L77: 0 | M77: 86 | N77: 79 | O77: 6.9 | P77: 5 | Q77: 9000103 | R77: 10006;10013;10014 | S77: 1500
A78: 74 | C78: 1-74 | D78: 4;77 | E78: 86 | F78: 7 | G78: 225 | H78: 150 | I78: 32120034 | J78: 10007;10011;10014 | K78: 10005;10012;10014 | L78: 0 | M78: 86 | N78: 79 | O78: 7 | P78: 5 | Q78: 9000103 | R78: 10006;10013;10014 | S78: 1520
A79: 75 | C79: 1-75 | D79: 4;78 | E79: 86 | F79: 7 | G79: 228 | H79: 150 | I79: 33825234 | J79: 10007;10011;10014 | K79: 10005;10012;10014 | L79: 0 | M79: 86 | N79: 79 | O79: 7.1 | P79: 5 | Q79: 9000103 | R79: 10006;10013;10014 | S79: 1540
A80: 76 | C80: 1-76 | D80: 4;79 | E80: 86 | F80: 7 | G80: 231 | H80: 150 | I80: 35478690 | J80: 10007;10011;10014 | K80: 10005;10012;10014 | L80: 0 | M80: 87 | N80: 80 | O80: 7.2 | P80: 5 | Q80: 9000103 | R80: 10006;10013;10014 | S80: 1560
A81: 77 | C81: 1-77 | D81: 4;80 | E81: 87 | F81: 7 | G81: 234 | H81: 150 | I81: 37064342 | J81: 10007;10011;10014 | K81: 10005;10012;10014 | L81: 0 | M81: 87 | N81: 80 | O81: 7.3 | P81: 5 | Q81: 9000103 | R81: 10006;10013;10014 | S81: 1580
A82: 78 | C82: 1-78 | D82: 4;81 | E82: 87 | F82: 7 | G82: 237 | H82: 160 | I82: 38566210 | J82: 10007;10011;10014 | K82: 10005;10012;10014 | L82: 0 | M82: 87 | N82: 80 | O82: 7.4 | P82: 5 | Q82: 9000103 | R82: 10006;10013;10014 | S82: 1600
A83: 79 | C83: 1-79 | D83: 4;82 | E83: 87 | F83: 7 | G83: 240 | H83: 160 | I83: 39968660 | J83: 10007;10011;10014 | K83: 10005;10012;10014 | L83: 0 | M83: 89 | N83: 81 | O83: 7.5 | P83: 5 | Q83: 9000103 | R83: 10006;10013;10014 | S83: 1620
A84: 80 | C84: 1-80 | D84: 4;83 | E84: 89 | F84: 7 | G84: 243 | H84: 160 | I84: 41256670 | J84: 10007;10011;10014 | K84: 10005;10012;10014 | L84: 0 | M84: 89 | N84: 81 | O84: 7.6 | P84: 5 | Q84: 9000103 | R84: 10006;10013;10014 | S84: 1640
A85: 81 | C85: 1-81 | D85: 4;84 | E85: 89 | F85: 7 | G85: 246 | H85: 160 | I85: 42416096 | J85: 10007;10011;10014 | K85: 10005;10012;10014 | L85: 0 | M85: 89 | N85: 81 | O85: 7.7 | P85: 5 | Q85: 9000103 | R85: 10006;10013;10014 | S85: 1660
A86: 82 | C86: 1-82 | D86: 4;85 | E86: 89 | F86: 7 | G86: 249 | H86: 160 | I86: 43433936 | J86: 10007;10011;10014 | K86: 10005;10012;10014 | L86: 0 | M86: 90 | N86: 82 | O86: 7.8 | P86: 5 | Q86: 9000103 | R86: 10006;10013;10014 | S86: 1680
A87: 83 | C87: 1-83 | D87: 4;86 | E87: 90 | F87: 7 | G87: 252 | H87: 170 | I87: 44320732 | J87: 10007;10011;10014 | K87: 10005;10012;10014 | L87: 0 | M87: 90 | N87: 82 | O87: 7.9 | P87: 5 | Q87: 9000103 | R87: 10006;10013;10014 | S87: 1700
A88: 84 | C88: 1-84 | D88: 4;87 | E88: 90 | F88: 7 | G88: 255 | H88: 170 | I88: 45135252 | J88: 10007;10011;10014 | K88: 10005;10012;10014 | L88: 0 | M88: 90 | N88: 82 | O88: 8 | P88: 5 | Q88: 9000103 | R88: 10006;10013;10014 | S88: 1720
A89: 85 | C89: 1-85 | D89: 4;88 | E89: 90 | F89: 7 | G89: 258 | H89: 170 | I89: 45872880 | J89: 10007;10011;10014 | K89: 10005;10012;10014 | L89: 0 | M89: 91 | N89: 83 | O89: 8.1 | P89: 5 | Q89: 9000103 | R89: 10006;10013;10014 | S89: 1740
A90: 86 | C90: 1-86 | D90: 4;89 | E90: 91 | F90: 7 | G90: 261 | H90: 170 | I90: 46529388 | J90: 10007;10011;10014 | K90: 10005;10012;10014 | L90: 0 | M90: 91 | N90: 83 | O90: 8.2 | P90: 5 | Q90: 9000103 | R90: 10006;10013;10014 | S90: 1760
A91: 87 | C91: 1-87 | D91: 4;90 | E91: 91 | F91: 7 | G91: 264 | H91: 170 | I91: 47100972 | J91: 10007;10011;10014 | K91: 10005;10012;10014 | L91: 0 | M91: 92 | N91: 84 | O91: 8.3 | P91: 5 | Q91: 9000103 | R91: 10006;10013;10014 | S91: 1780
A92: 88 | C92: 1-88 | D92: 4;91 | E92: 92 | F92: 7 | G92: 267 | H92: 180 | I92: 47655702 | J92: 10007;10011;10014 | K92: 10005;10012;10014 | L92: 0 | M92: 92 | N92: 84 | O92: 8.4 | P92: 5 | Q92: 9000103 | R92: 10006;10013;10014 | S92: 1800
A93: 89 | C93: 1-89 | D93: 4;92 | E93: 92 | F93: 8 | G93: 270 | H93: 180 | I93: 48410120 | J93: 10007;10011;10014 | K93: 10005;10012;10014 | L93: 0 | M93: 93 | N93: 84 | O93: 8.5 | P93: 5 | Q93: 9000103 | R93: 10006;10013;10014 | S93: 1820
A94: 90 | C94: 1-90 | D94: 4;93 | E94: 93 | F94: 8 | G94: 273 | H94: 180 | I94: 49373484 | J94: 10007;10011;10014 | K94: 10005;10012;10014 | L94: 0 | M94: 94 | N94: 85 | O94: 8.6 | P94: 5 | Q94: 9000103 | R94: 10006;10013;10014 | S94: 1840
A95: 91 | C95: 1-91 | D95: 4;94 | E95: 94 | F95: 8 | G95: 276 | H95: 180 | I95: 50557746 | J95: 10007;10011;10014 | K95: 10005;10012;10014 | L95: 0 | M95: 94 | N95: 85 | O95: 8.7 | P95: 5 | Q95: 9000103 | R95: 10006;10013;10014 | S95: 1860
A96: 92 | C96: 1-92 | D96: 4;95 | E96: 94 | F96: 8 | G96: 279 | H96: 180 | I96: 51977804 | J96: 10007;10011;10014 | K96: 10005;10012;10014 | L96: 0 | M96: 94 | N96: 85 | O96: 8.8 | P96: 5 | Q96: 9000103 | R96: 10006;10013;10014 | S96: 1880
A97: 93 | C97: 1-93 | D97: 4;96 | E97: 94 | F97: 8 | G97: 282 | H97: 190 | I97: 53651822 | J97: 10007;10011;10014 | K97: 10005;10012;10014 | L97: 0 | M97: 94 | N97: 85 | O97: 8.9 | P97: 5 | Q97: 9000103 | R97: 10006;10013;10014 | S97: 1900
A98: 94 | C98: 1-94 | D98: 4;97 | E98: 94 | F98: 8 | G98: 285 | H98: 190 | I98: 55601606 | J98: 10007;10011;10014 | K98: 10005;10012;10014 | L98: 0 | M98: 95 | N98: 86 | O98: 9 | P98: 5 | Q98: 9000103 | R98: 10006;10013;10014 | S98: 1920
A99: 95 | C99: 1-95 | D99: 4;98 | E99: 95 | F99: 8 | G99: 288 | H99: 190 | I99: 57853082 | J99: 10007;10011;10014 | K99: 10005;10012;10014 | L99: 0 | M99: 95 | N99: 86 | O99: 9.1 | P99: 5 | Q99: 9000103 | R99: 10006;10013;10014 | S99: 1940
A100: 96 | C100: 1-96 | D100: 4;99 | E100: 95 | F100: 8 | G100: 291 | H100: 190 | I100: 60436870 | J100: 10007;10011;10014 | K100: 10005;10012;10014 | L100: 0 | M100: 95 | N100: 86 | O100: 9.2 | P100: 5 | Q100: 9000103 | R100: 10006;10013;10014 | S100: 1960
A101: 97 | C101: 1-97 | D101: 4;100 | E101: 95 | F101: 8 | G101: 294 | H101: 190 | I101: 63388978 | J101: 10007;10011;10014 | K101: 10005;10012;10014 | L101: 0 | M101: 96 | N101: 87 | O101: 9.3 | P101: 5 | Q101: 9000103 | R101: 10006;10013;10014 | S101: 1980
A102: 98 | C102: 1-98 | D102: 4;101 | E102: 96 | F102: 8 | G102: 297 | H102: 200 | I102: 66751624 | J102: 10007;10011;10014 | K102: 10005;10012;10014 | L102: 0 | M102: 96 | N102: 87 | O102: 9.4 | P102: 5 | Q102: 9000103 | R102: 10006;10013;10014 | S102: 2000
A103: 99 | C103: 1-99 | D103: 4;102 | E103: =M102 -> 96 | F103: 8 | G103: 300 | H103: 200 | I103: 70574244 | J103: 10007;10011;10014 | K103: 10005;10012;10014 | L103: 0 | M103: 97 | N103: 87 | O103: 9.5 | P103: 5 | Q103: 9000103 | R103: 10006;10013;10014 | S103: 2020
A104: 100 | C104: 1-100 | D104: 4;103 | E104: 97 | F104: 8 | G104: 303 | H104: 200 | I104: 74914682 | J104: 10007;10011;10014 | K104: 10005;10012;10014 | L104: 0 | M104: 98 | N104: 88 | O104: 9.6 | P104: 5 | Q104: 9000103 | R104: 10006;10013;10014 | S104: 2040
A105: 101 | C105: 1-101 | D105: 4;104 | E105: 98 | F105: 8 | G105: 306 | H105: 200 | I105: 79840632 | J105: 10007;10011;10014 | K105: 10005;10012;10014 | L105: 1 | M105: 98 | N105: 88 | O105: 9.7 | P105: 5 | Q105: 9000104 | R105: 10006;10013;10014 | S105: 2060
A106: 102 | C106: 1-102 | D106: 4;105 | E106: 98 | F106: 8 | G106: 309 | H106: 200 | I106: 85431354 | J106: 10007;10011;10014 | K106: 10005;10012;10014 | L106: 2 | M106: 98 | N106: 88 | O106: 9.8 | P106: 5 | Q106: 9000105 | R106: 10006;10013;10014 | S106: 2080
A107: 103 | C107: 1-103 | D107: 4;106 | E107: 98 | F107: 8 | G107: 312 | H107: 210 | I107: 91779762 | J107: 10007;10011;10014 | K107: 10005;10012;10014 | L107: 3 | M107: 99 | N107: 89 | O107: 9.9 | P107: 5 | Q107: 9000106 | R107: 10006;10013;10014 | S107: 2100
A108: 104 | C108: 1-104 | D108: 4;107 | E108: 99 | F108: 9 | G108: 315 | H108: 210 | I108: 98994914 | J108: 10007;10011;10014 | K108: 10005;10012;10014 | L108: 4 | M108: 99 | N108: 89 | O108: 10 | P108: 5 | Q108: 9000107 | R108: 10006;10013;10014 | S108: 2120
A109: 105 | C109: 1-105 | D109: 4;108 | E109: 99 | F109: 9 | G109: 318 | H109: 210 | I109: 106990828 | J109: 10007;10011;10014 | K109: 10005;10012;10014 | L109: 5 | M109: 99 | N109: 89 | O109: 10.1 | P109: 5 | Q109: 9000108 | R109: 10006;10013;10014 | S109: 2140
A110: 106 | C110: 1-106 | D110: 4;109 | E110: 99 | F110: 9 | G110: 321 | H110: 210 | I110: 115170744 | J110: 10007;10011;10014 | K110: 10005;10012;10014 | L110: 6 | M110: 99 | N110: 89 | O110: 10.2 | P110: 5 | Q110: 9000109 | R110: 10006;10013;10014 | S110: 2160
A111: 107 | C111: 1-107 | D111: 4;110 | E111: 99 | F111: 9 | G111: 324 | H111: 210 | I111: 123480890 | J111: 10007;10011;10014 | K111: 10005;10012;10014 | L111: 7 | M111: 100 | N111: 90 | O111: 10.3 | P111: 5 | Q111: 9000110 | R111: 10006;10013;10014 | S111: 2180
A112: 108 | C112: 1-108 | D112: 4;111 | E112: 100 | F112: 9 | G112: 327 | H112: 220 | I112: 131861884 | J112: 10007;10011;10014 | K112: 10005;10012;10014 | L112: 8 | M112: 100 | N112: 90 | O112: 10.4 | P112: 5 | Q112: 9000111 | R112: 10006;10013;10014 | S112: 2200
A113: 109 | C113: 1-109 | D113: 4;112 | E113: 100 | F113: 9 | G113: 330 | H113: 220 | I113: 140249318 | J113: 10007;10011;10014 | K113: 10005;10012;10014 | L113: 9 | M113: 101 | N113: 90 | O113: 10.5 | P113: 5 | Q113: 9000112 | R113: 10006;10013;10014 | S113: 2220
A114: 110 | C114: 1-110 | D114: 4;113 | E114: 101 | F114: 9 | G114: 333 | H114: 220 | I114: 148574470 | J114: 10007;10011;10014 | K114: 10005;10012;10014 | L114: 10 | M114: 102 | N114: 91 | O114: 10.6 | P114: 5 | Q114: 9000113 | R114: 10006;10013;10014 | S114: 2240
A115: 111 | C115: 1-111 | D115: 4;114 | E115: 102 | F115: 9 | G115: 336 | H115: 220 | I115: 156765170 | J115: 10007;10011;10014 | K115: 10005;10012;10014 | L115: 11 | M115: 102 | N115: 91 | O115: 10.7 | P115: 5 | Q115: 9000114 | R115: 10006;10013;10014 | S115: 2260
A116: 112 | C116: 1-112 | D116: 4;115 | E116: 102 | F116: 9 | G116: 339 | H116: 220 | I116: 164746774 | J116: 10007;10011;10014 | K116: 10005;10012;10014 | L116: 12 | M116: 102 | N116: 91 | O116: 10.8 | P116: 5 | Q116: 9000115 | R116: 10006;10013;10014 | S116: 2280
A117: 113 | C117: 1-113 | D117: 4;116 | E117: 102 | F117: 9 | G117: 342 | H117: 230 | I117: 172443256 | J117: 10007;10011;10014 | K117: 10005;10012;10014 | L117: 13 | M117: 102 | N117: 91 | O117: 10.9 | P117: 5 | Q117: 9000116 | R117: 10006;10013;10014 | S117: 2300
A118: 114 | C118: 1-114 | D118: 4;117 | E118: 102 | F118: 9 | G118: 345 | H118: 230 | I118: 179778380 | J118: 10007;10011;10014 | K118: 10005;10012;10014 | L118: 14 | M118: 103 | N118: 92 | O118: 11 | P118: 5 | Q118: 9000117 | R118: 10006;10013;10014 | S118: 2320
A119: 115 | C119: 1-115 | D119: 4;118 | E119: 103 | F119: 9 | G119: 348 | H119: 230 | I119: 186676934 | J119: 10007;10011;10014 | K119: 10005;10012;10014 | L119: 15 | M119: 103 | N119: 92 | O119: 11.1 | P119: 5 | Q119: 9000118 | R119: 10006;10013;10014 | S119: 2340
A120: 116 | C120: 1-116 | D120: 4;119 | E120: 103 | F120: 9 | G120: 351 | H120: 230 | I120: 193066006 | J120: 10007;10011;10014 | K120: 10005;10012;10014 | L120: 16 | M120: 103 | N120: 92 | O120: 11.2 | P120: 5 | Q120: 9000119 | R120: 10006;10013;10014 | S120: 2360
A121: 117 | C121: 1-117 | D121: 4;120 | E121: 103 | F121: 9 | G121: 354 | H121: 230 | I121: 198876250 | J121: 10007;10011;10014 | K121: 10005;10012;10014 | L121: 17 | M121: 104 | N121: 93 | O121: 11.3 | P121: 5 | Q121: 9000120 | R121: 10006;10013;10014 | S121: 2380
A122: 118 | C122: 1-118 | D122: 4;121 | E122: 104 | F122: 9 | G122: 357 | H122: 240 | I122: 204043134 | J122: 10007;10011;10014 | K122: 10005;10012;10014 | L122: 18 | M122: 104 | N122: 93 | O122: 11.4 | P122: 5 | Q122: 9000121 | R122: 10006;10013;10014 | S122: 2400
A123: 119 | C123: 1-119 | D123: 4;122 | E123: 104 | F123: 9 | G123: 360 | H123: 240 | I123: 208508132 | J123: 10007;10011;10014 | K123: 10005;10012;10014 | L123: 19 | M123: 105 | N123: 93 | O123: 11.5 | P123: 5 | Q123: 9000122 | R123: 10006;10013;10014 | S123: 2420
A124: 120 | C124: 1-120 | D124: 4;123 | E124: 105 | F124: 9 | G124: 363 | H124: 240 | I124: 212219830 | J124: 10007;10011;10014 | K124: 10005;10012;10014 | L124: 20 | M124: 105 | N124: 93 | O124: 11.6 | P124: 5 | Q124: 9000123 | R124: 10006;10013;10014 | S124: 2440
A125: 121 | C125: 1-121 | D125: 4;124 | E125: 105 | F125: 9 | G125: 366 | H125: 240 | I125: 215134906 | J125: 10007;10011;10014 | K125: 10005;10012;10014 | L125: 21 | M125: 106 | N125: 94 | O125: 11.7 | P125: 5 | Q125: 9000124 | R125: 10006;10013;10014 | S125: 2460
A126: 122 | C126: 1-122 | D126: 4;125 | E126: 106 | F126: 9 | G126: 369 | H126: 240 | I126: 217218972 | J126: 10007;10011;10014 | K126: 10005;10012;10014 | L126: 22 | M126: 106 | N126: 94 | O126: 11.8 | P126: 5 | Q126: 9000125 | R126: 10006;10013;10014 | S126: 2480
A127: 123 | C127: 1-123 | D127: 4;126 | E127: 106 | F127: 9 | G127: 372 | H127: 250 | I127: 218447248 | J127: 10007;10011;10014 | K127: 10005;10012;10014 | L127: 23 | M127: 106 | N127: 94 | O127: 11.9 | P127: 5 | Q127: 9000126 | R127: 10006;10013;10014 | S127: 2500
A128: 124 | C128: 1-124 | D128: 4;127 | E128: 106 | F128: 9 | G128: 375 | H128: 250 | I128: 218805056 | J128: 10007;10011;10014 | K128: 10005;10012;10014 | L128: 24 | M128: 106 | N128: 94 | O128: 12 | P128: 5 | Q128: 9000127 | R128: 10006;10013;10014 | S128: 2520
A129: 125 | C129: 1-125 | D129: 4;128 | E129: 106 | F129: 9 | G129: 378 | H129: 250 | I129: 218944286 | J129: 10007;10011;10014 | K129: 10005;10012;10014 | L129: 25 | M129: 107 | N129: 95 | O129: 12.1 | P129: 5 | Q129: 9000128 | R129: 10006;10013;10014 | S129: 2540
A130: 126 | C130: 1-126 | D130: 4;129 | E130: 107 | F130: 10 | G130: 381 | H130: 250 | I130: 219083604 | J130: 10007;10011;10014 | K130: 10005;10012;10014 | L130: 26 | M130: 107 | N130: 95 | O130: 12.2 | P130: 5 | Q130: 9000129 | R130: 10006;10013;10014 | S130: 2560
A131: 127 | C131: 1-127 | D131: 4;130 | E131: 107 | F131: 10 | G131: 384 | H131: 250 | I131: 219223014 | J131: 10007;10011;10014 | K131: 10005;10012;10014 | L131: 27 | M131: 107 | N131: 95 | O131: 12.3 | P131: 5 | Q131: 9000130 | R131: 10006;10013;10014 | S131: 2580
A132: 128 | C132: 1-128 | D132: 4;131 | E132: 107 | F132: 10 | G132: 387 | H132: 259 | I132: 219362512 | J132: 10007;10011;10014 | K132: 10005;10012;10014 | L132: 28 | M132: 107 | N132: 95 | O132: 12.4 | P132: 5 | Q132: 9000131 | R132: 10006;10013;10014 | S132: 2600
A133: 129 | C133: 1-129 | D133: 4;132 | E133: 107 | F133: 10 | G133: 390 | H133: 259 | I133: 219502098 | J133: 10007;10011;10014 | K133: 10005;10012;10014 | L133: 29 | M133: 109 | N133: 96 | O133: 12.5 | P133: 5 | Q133: 9000132 | R133: 10006;10013;10014 | S133: 2620
A134: 130 | C134: 1-130 | D134: 4;133 | E134: 109 | F134: 10 | G134: 393 | H134: 259 | I134: 219641772 | J134: 10007;10011;10014 | K134: 10005;10012;10014 | L134: 30 | M134: =ROUND(N134+O134,0) -> 109 | N134: 96 | O134: 12.6 | P134: 5 | Q134: 9000133 | R134: 10006;10013;10014 | S134: 2640
A135: 131 | C135: 1-131 | D135: 4;134 | E135: =M134 -> 109 | F135: 10 | G135: 396 | H135: 259 | I135: 219781534 | J135: 10007;10011;10014 | K135: 10005;10012;10014 | L135: 31 | M135: 109 | N135: 96 | O135: 12.7 | P135: 5 | Q135: 9000134 | R135: 10006;10013;10014 | S135: 2660
A136: 132 | C136: 1-132 | D136: 4;135 | E136: 109 | F136: 10 | G136: 399 | H136: 259 | I136: 219921388 | J136: 10007;10011;10014 | K136: 10005;10012;10014 | L136: 32 | M136: 109 | N136: 96 | O136: 12.8 | P136: 5 | Q136: 9000135 | R136: 10006;10013;10014 | S136: 2680
A137: 133 | C137: 1-133 | D137: 4;136 | E137: 109 | F137: 10 | G137: 402 | H137: 269 | I137: 220061330 | J137: 10007;10011;10014 | K137: 10005;10012;10014 | L137: 33 | M137: 110 | N137: 97 | O137: 12.9 | P137: 5 | Q137: 9000136 | R137: 10006;10013;10014 | S137: 2700
A138: 134 | C138: 1-134 | D138: 4;137 | E138: 110 | F138: 10 | G138: 405 | H138: 269 | I138: 220201360 | J138: 10007;10011;10014 | K138: 10005;10012;10014 | L138: 34 | M138: 110 | N138: 97 | O138: 13 | P138: 5 | Q138: 9000137 | R138: 10006;10013;10014 | S138: 2720
A139: 135 | C139: 1-135 | D139: 4;138 | E139: 110 | F139: 10 | G139: 408 | H139: 269 | I139: 220341480 | J139: 10007;10011;10014 | K139: 10005;10012;10014 | L139: 35 | M139: 110 | N139: 97 | O139: 13.1 | P139: 5 | Q139: 9000138 | R139: 10006;10013;10014 | S139: 2740
A140: 136 | C140: 1-136 | D140: 4;139 | E140: 110 | F140: 10 | G140: 411 | H140: 269 | I140: 220481690 | J140: 10007;10011;10014 | K140: 10005;10012;10014 | L140: 36 | M140: 110 | N140: 97 | O140: 13.2 | P140: 5 | Q140: 9000139 | R140: 10006;10013;10014 | S140: 2760
A141: 137 | C141: 1-137 | D141: 4;140 | E141: 110 | F141: 10 | G141: 414 | H141: 269 | I141: 220621988 | J141: 10007;10011;10014 | K141: 10005;10012;10014 | L141: 37 | M141: 111 | N141: 98 | O141: 13.3 | P141: 5 | Q141: 9000140 | R141: 10006;10013;10014 | S141: 2780
A142: 138 | C142: 1-138 | D142: 4;141 | E142: 111 | F142: 10 | G142: 417 | H142: 279 | I142: 220762374 | J142: 10007;10011;10014 | K142: 10005;10012;10014 | L142: 38 | M142: 111 | N142: 98 | O142: 13.4 | P142: 5 | Q142: 9000141 | R142: 10006;10013;10014 | S142: 2800
A143: 139 | C143: 1-139 | D143: 4;142 | E143: 111 | F143: 10 | G143: 420 | H143: 279 | I143: 220902852 | J143: 10007;10011;10014 | K143: 10005;10012;10014 | L143: 39 | M143: 112 | N143: 98 | O143: 13.5 | P143: 5 | Q143: 9000142 | R143: 10006;10013;10014 | S143: 2820
A144: 140 | C144: 1-140 | D144: 4;143 | E144: 112 | F144: 10 | G144: 423 | H144: 279 | I144: 221043418 | J144: 10007;10011;10014 | K144: 10005;10012;10014 | L144: 40 | M144: 112 | N144: 98 | O144: 13.6 | P144: 5 | Q144: 9000143 | R144: 10006;10013;10014 | S144: 2840
A145: 141 | C145: 1-141 | D145: 4;144 | E145: 112 | F145: 10 | G145: 426 | H145: 279 | I145: 221184072 | J145: 10007;10011;10014 | K145: 10005;10012;10014 | L145: 41 | M145: 113 | N145: 99 | O145: 13.7 | P145: 5 | Q145: 9000144 | R145: 10006;10013;10014 | S145: 2860
A146: 142 | C146: 1-142 | D146: 4;145 | E146: 113 | F146: 10 | G146: 429 | H146: 279 | I146: 221324818 | J146: 10007;10011;10014 | K146: 10005;10012;10014 | L146: 42 | M146: 113 | N146: 99 | O146: 13.8 | P146: 5 | Q146: 9000145 | R146: 10006;10013;10014 | S146: 2880
A147: 143 | C147: 1-143 | D147: 4;146 | E147: 113 | F147: 10 | G147: 432 | H147: 289 | I147: 221465652 | J147: 10007;10011;10014 | K147: 10005;10012;10014 | L147: 43 | M147: 113 | N147: 99 | O147: 13.9 | P147: 5 | Q147: 9000146 | R147: 10006;10013;10014 | S147: 2900
A148: 144 | C148: 1-144 | D148: 4;147 | E148: 113 | F148: 10 | G148: 435 | H148: 289 | I148: 221606576 | J148: 10007;10011;10014 | K148: 10005;10012;10014 | L148: 44 | M148: 113 | N148: 99 | O148: 14 | P148: 5 | Q148: 9000147 | R148: 10006;10013;10014 | S148: 2920
A149: 145 | C149: 1-145 | D149: 4;148 | E149: 113 | F149: 10 | G149: 438 | H149: 289 | I149: 221747590 | J149: 10007;10011;10014 | K149: 10005;10012;10014 | L149: 45 | M149: 114 | N149: 100 | O149: 14.1 | P149: 5 | Q149: 9000148 | R149: 10006;10013;10014 | S149: 2940
A150: 146 | C150: 1-146 | D150: 4;149 | E150: 114 | F150: 10 | G150: 441 | H150: 289 | I150: 221888694 | J150: 10007;10011;10014 | K150: 10005;10012;10014 | L150: 46 | M150: 114 | N150: 100 | O150: 14.2 | P150: 5 | Q150: 9000149 | R150: 10006;10013;10014 | S150: 2960
A151: 147 | C151: 1-147 | D151: 4;150 | E151: 114 | F151: 10 | G151: 444 | H151: 289 | I151: 222029888 | J151: 10007;10011;10014 | K151: 10005;10012;10014 | L151: 47 | M151: 114 | N151: 100 | O151: 14.3 | P151: 5 | Q151: 9000150 | R151: 10006;10013;10014 | S151: 2980
A152: 148 | C152: 1-148 | D152: 4;151 | E152: 114 | F152: 10 | G152: 447 | H152: 299 | I152: 222171170 | J152: 10007;10011;10014 | K152: 10005;10012;10014 | L152: 48 | M152: 114 | N152: 100 | O152: 14.4 | P152: 5 | Q152: 9000151 | R152: 10006;10013;10014 | S152: 3000
A153: 149 | C153: 1-149 | D153: 4;152 | E153: 114 | F153: 10 | G153: 450 | H153: 299 | I153: 222312544 | J153: 10007;10011;10014 | K153: 10005;10012;10014 | L153: 49 | M153: 116 | N153: 101 | O153: 14.5 | P153: 5 | Q153: 9000152 | R153: 10006;10013;10014 | S153: 3020
A154: 150 | C154: 1-150 | D154: 4;153 | E154: 116 | F154: 10 | G154: 453 | H154: 299 | I154: 222454006 | J154: 10007;10011;10014 | K154: 10005;10012;10014 | L154: 50 | M154: 117 | N154: 102 | O154: 14.6 | P154: 5 | Q154: 9000153 | R154: 10006;10013;10014 | S154: 3040
A155: 151 | C155: 1-151 | D155: 4;154 | E155: =M154 -> 117 | F155: 10 | G155: 456 | H155: 299 | I155: 222595468 | J155: 10007;10011;10014 | K155: 10005;10012;10014 | L155: 51 | M155: 118 | N155: 103 | O155: 14.7 | P155: 5 | Q155: 9000154 | R155: 10006;10013;10014 | S155: 3060
A156: 152 | C156: 1-152 | D156: 4;155 | E156: 118 | F156: 10 | G156: 459 | H156: 299 | I156: 222736930 | J156: 10007;10011;10014 | K156: 10005;10012;10014 | L156: 52 | M156: 119 | N156: 104 | O156: 14.8 | P156: 5 | Q156: 9000155 | R156: 10006;10013;10014 | S156: 3080
A157: 153 | C157: 1-153 | D157: 4;156 | E157: 119 | F157: 10 | G157: 462 | H157: 299 | I157: 222878392 | J157: 10007;10011;10014 | K157: 10005;10012;10014 | L157: 53 | M157: 120 | N157: 105 | O157: 14.9 | P157: 5 | Q157: 9000156 | R157: 10006;10013;10014 | S157: 3100
A158: 154 | C158: 1-154 | D158: 4;157 | E158: 120 | F158: 10 | G158: 465 | H158: 299 | I158: 223019854 | J158: 10007;10011;10014 | K158: 10005;10012;10014 | L158: 54 | M158: 121 | N158: 106 | O158: 15 | P158: 5 | Q158: 9000157 | R158: 10006;10013;10014 | S158: 3120
A159: 155 | C159: 1-155 | D159: 4;158 | E159: 121 | F159: 10 | G159: 468 | H159: 299 | I159: 223161316 | J159: 10007;10011;10014 | K159: 10005;10012;10014 | L159: 55 | M159: 122 | N159: 107 | O159: 15.1 | P159: 5 | Q159: 9000158 | R159: 10006;10013;10014 | S159: 3140
A160: 156 | C160: 1-156 | D160: 4;159 | E160: 122 | F160: 10 | G160: 471 | H160: 299 | I160: 223302778 | J160: 10007;10011;10014 | K160: 10005;10012;10014 | L160: 56 | M160: 123 | N160: 108 | O160: 15.2 | P160: 5 | Q160: 9000159 | R160: 10006;10013;10014 | S160: 3160
A161: 157 | C161: 1-157 | D161: 4;160 | E161: 123 | F161: 10 | G161: 474 | H161: 299 | I161: 223444240 | J161: 10007;10011;10014 | K161: 10005;10012;10014 | L161: 57 | M161: 124 | N161: 109 | O161: 15.3 | P161: 5 | Q161: 9000160 | R161: 10006;10013;10014 | S161: 3180
A162: 158 | C162: 1-158 | D162: 4;161 | E162: 124 | F162: 10 | G162: 477 | H162: 299 | I162: 223585702 | J162: 10007;10011;10014 | K162: 10005;10012;10014 | L162: 58 | M162: 125 | N162: 110 | O162: 15.4 | P162: 5 | Q162: 9000161 | R162: 10006;10013;10014 | S162: 3200
A163: 159 | C163: 1-159 | D163: 4;162 | E163: 125 | F163: 10 | G163: 480 | H163: 299 | I163: 223727164 | J163: 10007;10011;10014 | K163: 10005;10012;10014 | L163: 59 | M163: 127 | N163: 111 | O163: 15.5 | P163: 5 | Q163: 9000162 | R163: 10006;10013;10014 | S163: 3220
A164: 160 | C164: 1-160 | D164: 4;163 | E164: 127 | F164: 10 | G164: 483 | H164: 299 | I164: 223868626 | J164: 10007;10011;10014 | K164: 10005;10012;10014 | L164: 60 | M164: 128 | N164: 112 | O164: 15.6 | P164: 5 | Q164: 9000163 | R164: 10006;10013;10014 | S164: 3240
A165: 161 | C165: 1-161 | D165: 4;164 | E165: 128 | F165: 10 | G165: 486 | H165: 299 | I165: 224010088 | J165: 10007;10011;10014 | K165: 10005;10012;10014 | L165: 61 | M165: 129 | N165: 113 | O165: 15.7 | P165: 5 | Q165: 9000164 | R165: 10006;10013;10014 | S165: 3260
A166: 162 | C166: 1-162 | D166: 4;165 | E166: 129 | F166: 10 | G166: 489 | H166: 299 | I166: 224151550 | J166: 10007;10011;10014 | K166: 10005;10012;10014 | L166: 62 | M166: 130 | N166: 114 | O166: 15.8 | P166: 5 | Q166: 9000165 | R166: 10006;10013;10014 | S166: 3280
A167: 163 | C167: 1-163 | D167: 4;166 | E167: 130 | F167: 10 | G167: 492 | H167: 299 | I167: 224293012 | J167: 10007;10011;10014 | K167: 10005;10012;10014 | L167: 63 | M167: 131 | N167: 115 | O167: 15.9 | P167: 5 | Q167: 9000166 | R167: 10006;10013;10014 | S167: 3300
A168: 164 | C168: 1-164 | D168: 4;167 | E168: 131 | F168: 10 | G168: 495 | H168: 299 | I168: 224434474 | J168: 10007;10011;10014 | K168: 10005;10012;10014 | L168: 64 | M168: 132 | N168: 116 | O168: 16 | P168: 5 | Q168: 9000167 | R168: 10006;10013;10014 | S168: 3320
A169: 165 | C169: 1-165 | D169: 4;168 | E169: 132 | F169: 10 | G169: 498 | H169: 299 | I169: 224575936 | J169: 10007;10011;10014 | K169: 10005;10012;10014 | L169: 65 | M169: 133 | N169: 117 | O169: 16.1 | P169: 5 | Q169: 9000168 | R169: 10006;10013;10014 | S169: 3340
A170: 166 | C170: 1-166 | D170: 4;169 | E170: 133 | F170: 10 | G170: 501 | H170: 299 | I170: 224717398 | J170: 10007;10011;10014 | K170: 10005;10012;10014 | L170: 66 | M170: 134 | N170: 118 | O170: 16.2 | P170: 5 | Q170: 9000169 | R170: 10006;10013;10014 | S170: 3360
A171: 167 | C171: 1-167 | D171: 4;170 | E171: 134 | F171: 10 | G171: 504 | H171: 299 | I171: 224858860 | J171: 10007;10011;10014 | K171: 10005;10012;10014 | L171: 67 | M171: 135 | N171: 119 | O171: 16.3 | P171: 5 | Q171: 9000170 | R171: 10006;10013;10014 | S171: 3380
A172: 168 | C172: 1-168 | D172: 4;171 | E172: 135 | F172: 10 | G172: 507 | H172: 299 | I172: 225000322 | J172: 10007;10011;10014 | K172: 10005;10012;10014 | L172: 68 | M172: 136 | N172: 120 | O172: 16.4 | P172: 5 | Q172: 9000171 | R172: 10006;10013;10014 | S172: 3400
A173: 169 | C173: 1-169 | D173: 4;172 | E173: 136 | F173: 10 | G173: 510 | H173: 299 | I173: 225141784 | J173: 10007;10011;10014 | K173: 10005;10012;10014 | L173: 69 | M173: 138 | N173: 121 | O173: 16.5 | P173: 5 | Q173: 9000172 | R173: 10006;10013;10014 | S173: 3420
A174: 170 | C174: 1-170 | D174: 4;173 | E174: 138 | F174: 10 | G174: 513 | H174: 299 | I174: 225283246 | J174: 10007;10011;10014 | K174: 10005;10012;10014 | L174: 70 | M174: 139 | N174: 122 | O174: 16.6 | P174: 5 | Q174: 9000173 | R174: 10006;10013;10014 | S174: 3440
A175: 171 | C175: 1-171 | D175: 4;174 | E175: 139 | F175: 10 | G175: 516 | H175: 299 | I175: 225424708 | J175: 10007;10011;10014 | K175: 10005;10012;10014 | L175: 71 | M175: 140 | N175: 123 | O175: 16.7 | P175: 5 | Q175: 9000174 | R175: 10006;10013;10014 | S175: 3460
A176: 172 | C176: 1-172 | D176: 4;175 | E176: 140 | F176: 10 | G176: 519 | H176: 299 | I176: 225566170 | J176: 10007;10011;10014 | K176: 10005;10012;10014 | L176: 72 | M176: 141 | N176: 124 | O176: 16.8 | P176: 5 | Q176: 9000175 | R176: 10006;10013;10014 | S176: 3480
A177: 173 | C177: 1-173 | D177: 4;176 | E177: 141 | F177: 10 | G177: 522 | H177: 299 | I177: 225707632 | J177: 10007;10011;10014 | K177: 10005;10012;10014 | L177: 73 | M177: 142 | N177: 125 | O177: 16.9 | P177: 5 | Q177: 9000176 | R177: 10006;10013;10014 | S177: 3500
A178: 174 | C178: 1-174 | D178: 4;177 | E178: 142 | F178: 10 | G178: 525 | H178: 299 | I178: 225849094 | J178: 10007;10011;10014 | K178: 10005;10012;10014 | L178: 74 | M178: 143 | N178: 126 | O178: 17 | P178: 5 | Q178: 9000177 | R178: 10006;10013;10014 | S178: 3520
A179: 175 | C179: 1-175 | D179: 4;178 | E179: 143 | F179: 10 | G179: 528 | H179: 299 | I179: 225990556 | J179: 10007;10011;10014 | K179: 10005;10012;10014 | L179: 75 | M179: 144 | N179: 127 | O179: 17.1 | P179: 5 | Q179: 9000178 | R179: 10006;10013;10014 | S179: 3540
A180: 176 | C180: 1-176 | D180: 4;179 | E180: 144 | F180: 10 | G180: 531 | H180: 299 | I180: 226132018 | J180: 10007;10011;10014 | K180: 10005;10012;10014 | L180: 76 | M180: 145 | N180: 128 | O180: 17.2 | P180: 5 | Q180: 9000179 | R180: 10006;10013;10014 | S180: 3560
A181: 177 | C181: 1-177 | D181: 4;180 | E181: 145 | F181: 10 | G181: 534 | H181: 299 | I181: 226273480 | J181: 10007;10011;10014 | K181: 10005;10012;10014 | L181: 77 | M181: 146 | N181: 129 | O181: 17.3 | P181: 5 | Q181: 9000180 | R181: 10006;10013;10014 | S181: 3580
A182: 178 | C182: 1-178 | D182: 4;181 | E182: 146 | F182: 10 | G182: 537 | H182: 299 | I182: 226414942 | J182: 10007;10011;10014 | K182: 10005;10012;10014 | L182: 78 | M182: 147 | N182: 130 | O182: 17.4 | P182: 5 | Q182: 9000181 | R182: 10006;10013;10014 | S182: 3600
A183: 179 | C183: 1-179 | D183: 4;182 | E183: 147 | F183: 10 | G183: 540 | H183: 299 | I183: 226556404 | J183: 10007;10011;10014 | K183: 10005;10012;10014 | L183: 79 | M183: 149 | N183: 131 | O183: 17.5 | P183: 5 | Q183: 9000182 | R183: 10006;10013;10014 | S183: 3620
A184: 180 | C184: 1-180 | D184: 4;183 | E184: 149 | F184: 10 | G184: 543 | H184: 299 | I184: 226697866 | J184: 10007;10011;10014 | K184: 10005;10012;10014 | L184: 80 | M184: 150 | N184: 132 | O184: 17.6 | P184: 5 | Q184: 9000183 | R184: 10006;10013;10014 | S184: 3640
A185: 181 | C185: 1-181 | D185: 4;184 | E185: 150 | F185: 10 | G185: 546 | H185: 299 | I185: 226839328 | J185: 10007;10011;10014 | K185: 10005;10012;10014 | L185: 81 | M185: 151 | N185: 133 | O185: 17.7 | P185: 5 | Q185: 9000184 | R185: 10006;10013;10014 | S185: 3660
A186: 182 | C186: 1-182 | D186: 4;185 | E186: 151 | F186: 10 | G186: 549 | H186: 299 | I186: 226980790 | J186: 10007;10011;10014 | K186: 10005;10012;10014 | L186: 82 | M186: 152 | N186: 134 | O186: 17.8 | P186: 5 | Q186: 9000185 | R186: 10006;10013;10014 | S186: 3680
A187: 183 | C187: 1-183 | D187: 4;186 | E187: =M186 -> 152 | F187: 10 | G187: 552 | H187: 299 | I187: 227122252 | J187: 10007;10011;10014 | K187: 10005;10012;10014 | L187: 83 | M187: 153 | N187: 135 | O187: 17.9 | P187: 5 | Q187: 9000186 | R187: 10006;10013;10014 | S187: 3700
A188: 184 | C188: 1-184 | D188: 4;187 | E188: 153 | F188: 10 | G188: 555 | H188: 299 | I188: 227263714 | J188: 10007;10011;10014 | K188: 10005;10012;10014 | L188: 84 | M188: 154 | N188: 136 | O188: 18 | P188: 5 | Q188: 9000187 | R188: 10006;10013;10014 | S188: 3720
A189: 185 | C189: 1-185 | D189: 4;188 | E189: 154 | F189: 10 | G189: 558 | H189: 299 | I189: 227405176 | J189: 10007;10011;10014 | K189: 10005;10012;10014 | L189: 85 | M189: 155 | N189: 137 | O189: 18.1 | P189: 5 | Q189: 9000188 | R189: 10006;10013;10014 | S189: 3740
A190: 186 | C190: 1-186 | D190: 4;189 | E190: 155 | F190: 10 | G190: 561 | H190: 299 | I190: 227546638 | J190: 10007;10011;10014 | K190: 10005;10012;10014 | L190: 86 | M190: 156 | N190: 138 | O190: 18.2 | P190: 5 | Q190: 9000189 | R190: 10006;10013;10014 | S190: 3760
A191: 187 | C191: 1-187 | D191: 4;190 | E191: 156 | F191: 10 | G191: 564 | H191: 299 | I191: 227688100 | J191: 10007;10011;10014 | K191: 10005;10012;10014 | L191: 87 | M191: 157 | N191: 139 | O191: 18.3 | P191: 5 | Q191: 9000190 | R191: 10006;10013;10014 | S191: 3780
A192: 188 | C192: 1-188 | D192: 4;191 | E192: 157 | F192: 10 | G192: 567 | H192: 299 | I192: 227829562 | J192: 10007;10011;10014 | K192: 10005;10012;10014 | L192: 88 | M192: 158 | N192: 140 | O192: 18.4 | P192: 5 | Q192: 9000191 | R192: 10006;10013;10014 | S192: 3800
A193: 189 | C193: 1-189 | D193: 4;192 | E193: 158 | F193: 10 | G193: 570 | H193: 299 | I193: 227971024 | J193: 10007;10011;10014 | K193: 10005;10012;10014 | L193: 89 | M193: 160 | N193: 141 | O193: 18.5 | P193: 5 | Q193: 9000192 | R193: 10006;10013;10014 | S193: 3820
A194: 190 | C194: 1-190 | D194: 4;193 | E194: 160 | F194: 10 | G194: 573 | H194: 299 | I194: 228112486 | J194: 10007;10011;10014 | K194: 10005;10012;10014 | L194: 90 | M194: 161 | N194: 142 | O194: 18.6 | P194: 5 | Q194: 9000193 | R194: 10006;10013;10014 | S194: 3840
A195: 191 | C195: 1-191 | D195: 4;194 | E195: 161 | F195: 10 | G195: 576 | H195: 299 | I195: 228253948 | J195: 10007;10011;10014 | K195: 10005;10012;10014 | L195: 91 | M195: 162 | N195: 143 | O195: 18.7 | P195: 5 | Q195: 9000194 | R195: 10006;10013;10014 | S195: 3860
A196: 192 | C196: 1-192 | D196: 4;195 | E196: 162 | F196: 10 | G196: 579 | H196: 299 | I196: 228395410 | J196: 10007;10011;10014 | K196: 10005;10012;10014 | L196: 92 | M196: 163 | N196: 144 | O196: 18.8 | P196: 5 | Q196: 9000195 | R196: 10006;10013;10014 | S196: 3880
A197: 193 | C197: 1-193 | D197: 4;196 | E197: 163 | F197: 10 | G197: 582 | H197: 299 | I197: 228536872 | J197: 10007;10011;10014 | K197: 10005;10012;10014 | L197: 93 | M197: 164 | N197: 145 | O197: 18.9 | P197: 5 | Q197: 9000196 | R197: 10006;10013;10014 | S197: 3900
A198: 194 | C198: 1-194 | D198: 4;197 | E198: 164 | F198: 10 | G198: 585 | H198: 299 | I198: 228678334 | J198: 10007;10011;10014 | K198: 10005;10012;10014 | L198: 94 | M198: =ROUND(N198+O198,0) -> 165 | N198: 146 | O198: 19 | P198: 5 | Q198: 9000197 | R198: 10006;10013;10014 | S198: 3920
A199: 195 | C199: 1-195 | D199: 4;198 | E199: 165 | F199: 10 | G199: 588 | H199: 299 | I199: 228819796 | J199: 10007;10011;10014 | K199: 10005;10012;10014 | L199: 95 | M199: 166 | N199: 147 | O199: 19.1 | P199: 5 | Q199: 9000198 | R199: 10006;10013;10014 | S199: 3940
A200: 196 | C200: 1-196 | D200: 4;199 | E200: 166 | F200: 10 | G200: 591 | H200: 299 | I200: 228961258 | J200: 10007;10011;10014 | K200: 10005;10012;10014 | L200: 96 | M200: 167 | N200: 148 | O200: 19.2 | P200: 5 | Q200: 9000199 | R200: 10006;10013;10014 | S200: 3960
A201: 197 | C201: 1-197 | D201: 4;200 | E201: 167 | F201: 10 | G201: 594 | H201: 299 | I201: 229102720 | J201: 10007;10011;10014 | K201: 10005;10012;10014 | L201: 97 | M201: 168 | N201: 149 | O201: 19.3 | P201: 5 | Q201: 9000200 | R201: 10006;10013;10014 | S201: 3980
... 116 more rows

Sheet MonsterWavesConfig
A1: ID | B1: wavesDelay | D1: monsterGroupConfigId | E1: miniMonsterCount | F1: eliteMonsterCount
A2: int | B2: int | D2: int[] | E2: int[] | F2: int[]
A4: ID | B4: 物品表的ID 掉落道具 | C4: VLOOKUP 语言表中的实际值 (策划看) | D4: 每一波可以刷出来的怪物组 | E4: 每一波可以耍的小怪数量 | F4: 每一波可以耍的精英怪数量
A5: 1 | B5: 5 | D5: 1;2;1 | E5: 1;2;3 | F5: 0;0;0;0;0;0;0;0;0;0;0
A6: 2 | B6: 5 | D6: 2;2;3 | E6: 2;3;4 | F6: 0;0;0;0;0;0;0;0;0;0;0
A7: 3 | B7: 5 | D7: 2;2;3 | E7: 3;4;5 | F7: 0;0;0;0;0;0;0;0;0;0;0
A8: 4 | B8: 5 | D8: 2;2;3 | E8: 4;5;10;10 | F8: 0;0;0;0;0;0;0;0;0;0;0
A9: 5 | B9: 5 | D9: 2;2;3 | E9: 4;5;10;10 | F9: 0;0;0;0;0;0;0;0;0;0;0
A10: 6 | B10: 5 | D10: 2;2;3 | E10: 4;5;10;10 | F10: 0;0;0;0;0;0;0;0;0;0;0
A11: 7 | B11: 5 | D11: 2;2;3 | E11: 4;5;10;10 | F11: 0;0;0;0;0;0;0;0;0;0;0
A12: 8 | B12: 5 | D12: 2;2;3;3;4;2 | E12: 3;4;5;7;10;10 | F12: 0;0;0;0;0;0;0;0;0;0;0
A13: 9 | B13: 5 | D13: 2;2;3;3;4;4;3;3;4 | E13: 3;4;5;7;10;10;10;10;10 | F13: 0;0;0;0;0;1;0;0;1;0;1
A14: 10 | B14: 5 | D14: 2;2;3;3;4;4;3;3;4 | E14: 3;4;5;7;10;10;10;10;10 | F14: 0;0;0;0;0;1;0;0;1;0;1
A15: 11 | B15: 5 | D15: 2;2;3;3;4;4;3;3;4 | E15: 3;4;5;7;10;10;10;10;10 | F15: 0;0;0;0;0;1;0;0;1;0;1
A16: 12 | B16: 5 | D16: 2;2;3;3;4;4;3;3;4 | E16: 3;4;5;7;10;10;10;10;10 | F16: 0;0;0;0;0;1;0;0;1;0;1
A17: 13 | B17: 5 | D17: 2;2;3;3;4;4;3;3;4 | E17: 3;4;5;7;10;10;10;10;10 | F17: 0;0;0;0;0;1;0;0;1;0;1
A18: 14 | B18: 5 | D18: 2;2;3;3;4;4;3;3;4 | E18: 3;4;5;7;10;10;10;10;10 | F18: 0;0;0;0;0;1;0;0;1;0;1
A19: 15 | B19: 5 | D19: 2;2;3;3;4;4;3;3;4 | E19: 3;4;5;7;10;10;10;10;10 | F19: 0;0;0;0;0;1;0;1;1;0;1
A20: 16 | B20: 5 | D20: 2;2;3;3;4;4;3;3;4 | E20: 3;4;5;7;10;10;10;10;10 | F20: 0;0;0;0;0;1;0;0;1;0;1
A21: 17 | B21: 5 | D21: 2;2;3;3;4;4;3;3;4 | E21: 3;4;5;7;10;10;10;10;10 | F21: 0;0;0;0;0;1;0;1;1;0;1
A22: 18 | B22: 5 | D22: 2;2;3;3;4;4;3;3;4 | E22: 3;4;5;7;10;10;10;10;10 | F22: 0;0;0;0;0;1;0;0;1;0;1
A23: 19 | B23: 5 | D23: 2;2;3;3;4;4;3;3;4 | E23: 3;4;5;7;10;10;15;15;15 | F23: 0;0;0;0;0;1;0;0;1;0;1
A24: 20 | B24: 5 | D24: 2;2;3;3;4;4;3;3;4 | E24: 3;4;5;7;10;10;15;15;15 | F24: 0;0;0;0;0;1;0;0;1;0;1
A25: 21 | B25: 5 | D25: 2;2;3;3;4;4;3;3;4 | E25: 3;4;5;7;10;10;15;15;15 | F25: 0;0;0;0;0;1;0;0;1;0;1
A26: 22 | B26: 5 | D26: 2;2;3;3;4;4;3;3;4 | E26: 3;4;5;7;10;10;15;15;15 | F26: 0;0;0;0;0;1;0;0;1;0;1
A27: 23 | B27: 5 | D27: 2;2;3;3;4;4;3;3;4 | E27: 3;4;5;7;10;10;15;15;15 | F27: 0;0;0;0;0;1;0;0;1;0;1
A28: 24 | B28: 5 | D28: 2;2;3;3;4;4;3;3;4 | E28: 3;4;5;7;10;10;15;15;15 | F28: 0;0;0;0;0;1;0;0;1;0;1
A29: 25 | B29: 5 | D29: 2;2;3;3;4;4;3;3;4 | E29: 3;4;5;7;10;10;15;15;15 | F29: 0;0;0;0;0;1;0;0;1;0;1
A30: 26 | B30: 5 | D30: 2;2;3;3;4;4;3;3;4 | E30: 3;4;5;7;10;10;15;15;15 | F30: 0;0;0;0;0;1;0;0;1;0;1
A31: 27 | B31: 5 | D31: 2;2;3;3;4;4;3;3;4 | E31: 3;4;5;7;10;10;15;15;15 | F31: 0;0;0;0;0;1;0;0;1;0;1
A32: 28 | B32: 5 | D32: 2;2;3;3;4;4;3;3;4 | E32: 3;4;5;7;10;10;15;15;15 | F32: 0;0;0;0;0;1;0;0;1;0;1
A33: 29 | B33: 5 | D33: 2;2;3;3;4;4;3;3;4 | E33: 3;4;5;7;10;10;15;15;15 | F33: 0;0;0;0;0;1;0;0;1;0;1
A34: 30 | B34: 5 | D34: 2;2;3;3;4;4;3;3;4;3;4 | E34: 3;4;5;7;10;10;15;15;15;15;15 | F34: 0;0;0;0;0;1;0;0;1;0;1;1;1
A35: 31 | B35: 5 | D35: 2;2;3;3;4;4;3;3;4;3;4 | E35: 3;4;5;7;10;10;15;15;15;15;15 | F35: 0;0;0;0;0;1;0;0;1;0;1;1;1
A36: 32 | B36: 5 | D36: 2;2;3;3;4;4;3;3;4;3;4 | E36: 3;4;5;7;10;10;15;15;15;15;15 | F36: 0;0;0;0;0;1;0;0;1;0;1;1;1
A37: 33 | B37: 5 | D37: 2;2;3;3;4;4;3;3;4;3;4 | E37: 3;4;5;7;10;10;15;15;15;15;15 | F37: 0;0;0;0;0;1;0;0;1;0;1;1;1
A38: 34 | B38: 5 | D38: 2;2;3;3;4;4;3;3;4;3;4 | E38: 3;4;5;7;10;10;15;15;15;15;15 | F38: 0;0;0;0;0;1;0;0;1;0;1;1;1
A39: 35 | B39: 5 | D39: 2;2;3;3;4;4;3;3;4;3;4 | E39: 3;4;5;7;10;10;15;15;15;15;15 | F39: 0;0;0;0;0;1;0;0;1;0;1;1;1
A40: 36 | B40: 5 | D40: 2;2;3;3;4;4;3;3;4;3;4 | E40: 3;4;5;7;10;10;15;15;15;15;15 | F40: 0;0;0;0;0;1;0;0;1;0;1;1;1
A41: 37 | B41: 5 | D41: 2;2;3;3;4;4;3;3;4;3;4 | E41: 3;4;5;7;10;10;15;15;15;15;15 | F41: 0;0;0;0;0;1;0;0;1;0;1;1;1
A42: 38 | B42: 5 | D42: 2;2;3;3;4;4;3;3;4;3;4 | E42: 3;4;5;7;10;10;15;15;15;15;15 | F42: 0;0;0;0;0;1;0;0;1;0;1;1;1
A43: 39 | B43: 5 | D43: 2;2;3;3;4;4;3;3;4;3;4 | E43: 3;4;5;7;10;10;15;15;15;15;15 | F43: 0;0;0;0;0;1;0;0;1;0;1;1;1
A44: 40 | B44: 5 | D44: 2;2;3;3;4;4;3;3;4;3;4 | E44: 3;4;5;7;10;10;15;15;15;15;15 | F44: 0;0;0;0;0;1;0;0;1;0;1;1;1
A45: 41 | B45: 5 | D45: 2;2;3;3;4;4;3;3;4;3;4 | E45: 3;4;5;7;10;10;15;15;15;15;15 | F45: 0;0;0;0;0;1;0;0;1;0;1;1;1
A46: 42 | B46: 5 | D46: 2;2;3;3;4;4;3;3;4;3;4 | E46: 3;4;5;7;10;10;15;15;15;15;15 | F46: 0;0;0;0;0;1;0;0;1;0;1;1;1
A47: 43 | B47: 5 | D47: 2;2;3;3;4;4;3;3;4;3;4 | E47: 3;4;5;7;10;10;15;15;15;15;15 | F47: 0;0;0;0;0;1;0;0;1;0;1;1;1
A48: 44 | B48: 5 | D48: 2;2;3;3;4;4;3;3;4;3;4 | E48: 3;4;5;7;10;10;15;15;15;15;15 | F48: 0;0;0;0;0;1;0;0;1;0;1;1;1
A49: 45 | B49: 5 | D49: 2;2;3;3;4;4;3;3;4;3;4 | E49: 3;4;5;7;10;10;15;15;15;15;15 | F49: 0;0;0;0;0;1;0;0;1;0;1;1;1
A50: 46 | B50: 5 | D50: 2;2;3;3;4;4;3;3;4;3;4 | E50: 3;4;5;7;10;10;15;15;15;15;15 | F50: 0;0;0;0;0;1;0;0;1;0;1;1;1
A51: 47 | B51: 5 | D51: 2;2;3;3;4;4;3;3;4;3;4 | E51: 3;4;5;7;10;10;15;15;15;15;15 | F51: 0;0;0;0;0;1;0;0;1;0;1;1;1
A52: 48 | B52: 5 | D52: 2;2;3;3;4;4;3;3;4;3;4 | E52: 3;4;5;7;10;10;15;15;15;15;15 | F52: 0;0;0;0;0;1;0;0;1;0;1;1;1
A53: 49 | B53: 5 | D53: 2;2;3;3;4;4;3;3;4;3;4 | E53: 3;4;5;7;10;10;15;15;15;15;15 | F53: 0;0;0;0;0;1;0;0;1;0;1;1;1
A54: 50 | B54: 5 | D54: 2;2;3;3;4;4;3;3;4;3;4 | E54: 3;4;5;7;10;10;15;15;15;15;15 | F54: 0;0;0;0;0;1;0;0;1;0;1;1;1
A55: 51 | B55: 5 | D55: 2;2;3;3;4;4;3;3;4;3;4 | E55: 3;4;5;7;10;10;15;15;15;15;15 | F55: 0;0;0;0;0;1;0;0;1;0;1;1;1
A56: 52 | B56: 5 | D56: 2;2;3;3;4;4;3;3;4;3;4 | E56: 3;4;5;7;10;10;15;15;15;15;15 | F56: 0;0;0;0;0;1;0;0;1;0;1;1;1
A57: 53 | B57: 5 | D57: 2;2;3;3;4;4;3;3;4;3;4 | E57: 3;4;5;7;10;10;15;15;15;15;15 | F57: 0;0;0;0;0;1;0;0;1;0;1;1;1
A58: 54 | B58: 5 | D58: 2;2;3;3;4;4;3;3;4;3;4 | E58: 3;4;5;7;10;10;15;15;15;15;15 | F58: 0;0;0;0;0;1;0;0;1;0;1;1;1
A59: 55 | B59: 5 | D59: 2;2;3;3;4;4;3;3;4;3;4 | E59: 3;4;5;7;10;10;15;15;15;15;15 | F59: 0;0;0;0;0;1;0;0;1;0;1;1;1
A60: 56 | B60: 5 | D60: 2;2;3;3;4;4;3;3;4;3;4 | E60: 3;4;5;7;10;10;15;15;15;15;15 | F60: 0;0;0;0;0;1;0;0;1;0;1;1;1
A61: 57 | B61: 5 | D61: 2;2;3;3;4;4;3;3;4;3;4 | E61: 3;4;5;7;10;10;15;15;15;15;15 | F61: 0;0;0;0;0;1;0;0;1;0;1;1;1
A62: 58 | B62: 5 | D62: 2;2;3;3;4;4;3;3;4;3;4 | E62: 3;4;5;7;10;10;15;15;15;15;15 | F62: 0;0;0;0;0;1;0;0;1;0;1;1;1
A63: 59 | B63: 5 | D63: 2;2;3;3;4;4;3;3;4;3;4 | E63: 3;4;5;7;10;10;15;15;15;15;15 | F63: 0;0;0;0;0;1;0;0;1;0;1;1;1
A64: 60 | B64: 5 | D64: 2;2;3;3;4;4;3;3;4;3;4 | E64: 3;4;5;7;10;10;15;15;15;15;15 | F64: 0;0;0;0;0;1;0;0;1;0;1;1;1
A65: 61 | B65: 5 | D65: 2;2;3;3;4;4;3;3;4;3;4 | E65: 3;4;5;7;10;10;15;15;15;15;15 | F65: 0;0;0;0;0;1;0;0;1;0;1;1;1
A66: 62 | B66: 5 | D66: 2;2;3;3;4;4;3;3;4;3;4 | E66: 3;4;5;7;10;10;15;15;15;15;15 | F66: 0;0;0;0;0;1;0;0;1;0;1;1;1
A67: 63 | B67: 5 | D67: 2;2;3;3;4;4;3;3;4;3;4 | E67: 3;4;5;7;10;10;15;15;15;15;15 | F67: 0;0;0;0;0;1;0;0;1;0;1;1;1
A68: 64 | B68: 5 | D68: 2;2;3;3;4;4;3;3;4;3;4 | E68: 3;4;5;7;10;10;15;15;15;15;15 | F68: 0;0;0;0;0;1;0;0;1;0;1;1;1
A69: 65 | B69: 5 | D69: 2;2;3;3;4;4;3;3;4;3;4 | E69: 3;4;5;7;10;10;15;15;15;15;15 | F69: 0;0;0;0;0;1;0;0;1;0;1;1;1
A70: 66 | B70: 5 | D70: 2;2;3;3;4;4;3;3;4;3;4 | E70: 3;4;5;7;10;10;15;15;15;15;15 | F70: 0;0;0;0;0;1;0;0;1;0;1;1;1
A71: 67 | B71: 5 | D71: 2;2;3;3;4;4;3;3;4;3;4 | E71: 3;4;5;7;10;10;15;15;15;15;15 | F71: 0;0;0;0;0;1;0;0;1;0;1;1;1
A72: 68 | B72: 5 | D72: 2;2;3;3;4;4;3;3;4;3;4 | E72: 3;4;5;7;10;10;15;15;15;15;15 | F72: 0;0;0;0;0;1;0;0;1;0;1;1;1
A73: 69 | B73: 5 | D73: 2;2;3;3;4;4;3;3;4;3;4 | E73: 3;4;5;7;10;10;15;15;15;15;15 | F73: 0;0;0;0;0;1;0;0;1;0;1;1;1
A74: 70 | B74: 5 | D74: 2;2;3;3;4;4;3;3;4;3;4 | E74: 3;4;5;7;10;10;15;15;15;15;15 | F74: 0;0;0;0;0;1;0;0;1;0;1;1;1
A75: 71 | B75: 5 | D75: 2;2;3;3;4;4;3;3;4;3;4 | E75: 3;4;5;7;10;10;15;15;15;15;15 | F75: 0;0;0;0;0;1;0;0;1;0;1;1;1
A76: 72 | B76: 5 | D76: 2;2;3;3;4;4;3;3;4;3;4 | E76: 3;4;5;7;10;10;15;15;15;15;15 | F76: 0;0;0;0;0;1;0;0;1;0;1;1;1
A77: 73 | B77: 5 | D77: 2;2;3;3;4;4;3;3;4;3;4 | E77: 3;4;5;7;10;10;15;15;15;15;15 | F77: 0;0;0;0;0;1;0;0;1;0;1;1;1
A78: 74 | B78: 5 | D78: 2;2;3;3;4;4;3;3;4;3;4 | E78: 3;4;5;7;10;10;15;15;15;15;15 | F78: 0;0;0;0;0;1;0;0;1;0;1;1;1
A79: 75 | B79: 5 | D79: 2;2;3;3;4;4;3;3;4;3;4 | E79: 3;4;5;7;10;10;15;15;15;15;15 | F79: 0;0;0;0;0;1;0;0;1;0;1;1;1
A80: 76 | B80: 5 | D80: 2;2;3;3;4;4;3;3;4;3;4 | E80: 3;4;5;7;10;10;15;15;15;15;15 | F80: 0;0;0;0;0;1;0;0;1;0;1;1;1
A81: 77 | B81: 5 | D81: 2;2;3;3;4;4;3;3;4;3;4 | E81: 3;4;5;7;10;10;15;15;15;15;15 | F81: 0;0;0;0;0;1;0;0;1;0;1;1;1
A82: 78 | B82: 5 | D82: 2;2;3;3;4;4;3;3;4;3;4 | E82: 3;4;5;7;10;10;15;15;15;15;15 | F82: 0;0;0;0;0;1;0;0;1;0;1;1;1
A83: 79 | B83: 5 | D83: 2;2;3;3;4;4;3;3;4;3;4 | E83: 3;4;5;7;10;10;15;15;15;15;15 | F83: 0;0;0;0;0;1;0;0;1;0;1;1;1
A84: 80 | B84: 5 | D84: 2;2;3;3;4;4;3;3;4;3;4 | E84: 3;4;5;7;10;10;15;15;15;15;15 | F84: 0;0;0;0;0;1;0;0;1;0;1;1;1
A85: 81 | B85: 5 | D85: 2;2;3;3;4;4;3;3;4;3;4 | E85: 3;4;5;7;10;10;15;15;15;15;15 | F85: 0;0;0;0;0;1;0;0;1;0;1;1;1
A86: 82 | B86: 5 | D86: 2;2;3;3;4;4;3;3;4;3;4 | E86: 3;4;5;7;10;10;15;15;15;15;15 | F86: 0;0;0;0;0;1;0;0;1;0;1;1;1
A87: 83 | B87: 5 | D87: 2;2;3;3;4;4;3;3;4;3;4 | E87: 3;4;5;7;10;10;15;15;15;15;15 | F87: 0;0;0;0;0;1;0;0;1;0;1;1;1
A88: 84 | B88: 5 | D88: 2;2;3;3;4;4;3;3;4;3;4 | E88: 3;4;5;7;10;10;15;15;15;15;15 | F88: 0;0;0;0;0;1;0;0;1;0;1;1;1
A89: 85 | B89: 5 | D89: 2;2;3;3;4;4;3;3;4;3;4 | E89: 3;4;5;7;10;10;15;15;15;15;15 | F89: 0;0;0;0;0;1;0;0;1;0;1;1;1
A90: 86 | B90: 5 | D90: 2;2;3;3;4;4;3;3;4;3;4 | E90: 3;4;5;7;10;10;15;15;15;15;15 | F90: 0;0;0;0;0;1;0;0;1;0;1;1;1
A91: 87 | B91: 5 | D91: 2;2;3;3;4;4;3;3;4;3;4 | E91: 3;4;5;7;10;10;15;15;15;15;15 | F91: 0;0;0;0;0;1;0;0;1;0;1;1;1
A92: 88 | B92: 5 | D92: 2;2;3;3;4;4;3;3;4;3;4 | E92: 3;4;5;7;10;10;15;15;15;15;15 | F92: 0;0;0;0;0;1;0;0;1;0;1;1;1
A93: 89 | B93: 5 | D93: 2;2;3;3;4;4;3;3;4;3;4 | E93: 3;4;5;7;10;10;15;15;15;15;15 | F93: 0;0;0;0;0;1;0;0;1;0;1;1;1
A94: 90 | B94: 5 | D94: 2;2;3;3;4;4;3;3;4;3;4 | E94: 3;4;5;7;10;10;15;15;15;15;15 | F94: 0;0;0;0;0;1;0;0;1;0;1;1;1
A95: 91 | B95: 5 | D95: 2;2;3;3;4;4;3;3;4;3;4 | E95: 3;4;5;7;10;10;15;15;15;15;15 | F95: 0;0;0;0;0;1;0;0;1;0;1;1;1
A96: 92 | B96: 5 | D96: 2;2;3;3;4;4;3;3;4;3;4 | E96: 3;4;5;7;10;10;15;15;15;15;15 | F96: 0;0;0;0;0;1;0;0;1;0;1;1;1
A97: 93 | B97: 5 | D97: 2;2;3;3;4;4;3;3;4;3;4 | E97: 3;4;5;7;10;10;15;15;15;15;15 | F97: 0;0;0;0;0;1;0;0;1;0;1;1;1
A98: 94 | B98: 5 | D98: 2;2;3;3;4;4;3;3;4;3;4 | E98: 3;4;5;7;10;10;15;15;15;15;15 | F98: 0;0;0;0;0;1;0;0;1;0;1;1;1
A99: 95 | B99: 5 | D99: 2;2;3;3;4;4;3;3;4;3;4 | E99: 3;4;5;7;10;10;15;15;15;15;15 | F99: 0;0;0;0;0;1;0;0;1;0;1;1;1
A100: 96 | B100: 5 | D100: 2;2;3;3;4;4;3;3;4;3;4 | E100: 3;4;5;7;10;10;15;15;15;15;15 | F100: 0;0;0;0;0;1;0;0;1;0;1;1;1
A101: 97 | B101: 5 | D101: 2;2;3;3;4;4;3;3;4;3;4 | E101: 3;4;5;7;10;10;15;15;15;15;15 | F101: 0;0;0;0;0;1;0;0;1;0;1;1;1
A102: 98 | B102: 5 | D102: 2;2;3;3;4;4;3;3;4;3;4 | E102: 3;4;5;7;10;10;15;15;15;15;15 | F102: 0;0;0;0;0;1;0;0;1;0;1;1;1
A103: 99 | B103: 5 | D103: 2;2;3;3;4;4;3;3;4;3;4 | E103: 3;4;5;7;10;10;15;15;15;15;15 | F103: 0;0;0;0;0;1;0;0;1;0;1;1;1
A104: 100 | B104: 5 | D104: 2;2;3;3;4;4;3;3;4;3;4 | E104: 3;4;5;7;10;10;15;15;15;15;15 | F104: 0;0;0;0;0;1;0;0;1;0;1;1;1
A105: 101 | B105: 5 | D105: 2;2;3;3;4;4;3;3;4;3;4 | E105: 3;4;5;7;10;10;15;15;15;15;15 | F105: 0;0;0;0;0;1;0;0;1;0;1;1;1
A106: 102 | B106: 5 | D106: 2;2;3;3;4;4;3;3;4;3;4 | E106: 3;4;5;7;10;10;15;15;15;15;15 | F106: 0;0;0;0;0;1;0;0;1;0;1;1;1
A107: 103 | B107: 5 | D107: 2;2;3;3;4;4;3;3;4;3;4 | E107: 3;4;5;7;10;10;15;15;15;15;15 | F107: 0;0;0;0;0;1;0;0;1;0;1;1;1
A108: 104 | B108: 5 | D108: 2;2;3;3;4;4;3;3;4;3;4 | E108: 3;4;5;7;10;10;15;15;15;15;15 | F108: 0;0;0;0;0;1;0;0;1;0;1;1;1
A109: 105 | B109: 5 | D109: 2;2;3;3;4;4;3;3;4;3;4 | E109: 3;4;5;7;10;10;15;15;15;15;15 | F109: 0;0;0;0;0;1;0;0;1;0;1;1;1
A110: 106 | B110: 5 | D110: 2;2;3;3;4;4;3;3;4;3;4 | E110: 3;4;5;7;10;10;15;15;15;15;15 | F110: 0;0;0;0;0;1;0;0;1;0;1;1;1
A111: 107 | B111: 5 | D111: 2;2;3;3;4;4;3;3;4;3;4 | E111: 3;4;5;7;10;10;15;15;15;15;15 | F111: 0;0;0;0;0;1;0;0;1;0;1;1;1
A112: 108 | B112: 5 | D112: 2;2;3;3;4;4;3;3;4;3;4 | E112: 3;4;5;7;10;10;15;15;15;15;15 | F112: 0;0;0;0;0;1;0;0;1;0;1;1;1
A113: 109 | B113: 5 | D113: 2;2;3;3;4;4;3;3;4;3;4 | E113: 3;4;5;7;10;10;15;15;15;15;15 | F113: 0;0;0;0;0;1;0;0;1;0;1;1;1
A114: 110 | B114: 5 | D114: 2;2;3;3;4;4;3;3;4;3;4 | E114: 3;4;5;7;10;10;15;15;15;15;15 | F114: 0;0;0;0;0;1;0;0;1;0;1;1;1
A115: 111 | B115: 5 | D115: 2;2;3;3;4;4;3;3;4;3;4 | E115: 3;4;5;7;10;10;15;15;15;15;15 | F115: 0;0;0;0;0;1;0;0;1;0;1;1;1
A116: 112 | B116: 5 | D116: 2;2;3;3;4;4;3;3;4;3;4 | E116: 3;4;5;7;10;10;15;15;15;15;15 | F116: 0;0;0;0;0;1;0;0;1;0;1;1;1
A117: 113 | B117: 5 | D117: 2;2;3;3;4;4;3;3;4;3;4 | E117: 3;4;5;7;10;10;15;15;15;15;15 | F117: 0;0;0;0;0;1;0;0;1;0;1;1;1
A118: 114 | B118: 5 | D118: 2;2;3;3;4;4;3;3;4;3;4 | E118: 3;4;5;7;10;10;15;15;15;15;15 | F118: 0;0;0;0;0;1;0;0;1;0;1;1;1
A119: 115 | B119: 5 | D119: 2;2;3;3;4;4;3;3;4;3;4 | E119: 3;4;5;7;10;10;15;15;15;15;15 | F119: 0;0;0;0;0;1;0;0;1;0;1;1;1
A120: 116 | B120: 5 | D120: 2;2;3;3;4;4;3;3;4;3;4 | E120: 3;4;5;7;10;10;15;15;15;15;15 | F120: 0;0;0;0;0;1;0;0;1;0;1;1;1
A121: 117 | B121: 5 | D121: 2;2;3;3;4;4;3;3;4;3;4 | E121: 3;4;5;7;10;10;15;15;15;15;15 | F121: 0;0;0;0;0;1;0;0;1;0;1;1;1
A122: 118 | B122: 5 | D122: 2;2;3;3;4;4;3;3;4;3;4 | E122: 3;4;5;7;10;10;15;15;15;15;15 | F122: 0;0;0;0;0;1;0;0;1;0;1;1;1
A123: 119 | B123: 5 | D123: 2;2;3;3;4;4;3;3;4;3;4 | E123: 3;4;5;7;10;10;15;15;15;15;15 | F123: 0;0;0;0;0;1;0;0;1;0;1;1;1
A124: 120 | B124: 5 | D124: 2;2;3;3;4;4;3;3;4;3;4 | E124: 3;4;5;7;10;10;15;15;15;15;15 | F124: 0;0;0;0;0;1;0;0;1;0;1;1;1
A125: 121 | B125: 5 | D125: 2;2;3;3;4;4;3;3;4;3;4 | E125: 3;4;5;7;10;10;15;15;15;15;15 | F125: 0;0;0;0;0;1;0;0;1;0;1;1;1
A126: 122 | B126: 5 | D126: 2;2;3;3;4;4;3;3;4;3;4 | E126: 3;4;5;7;10;10;15;15;15;15;15 | F126: 0;0;0;0;0;1;0;0;1;0;1;1;1
A127: 123 | B127: 5 | D127: 2;2;3;3;4;4;3;3;4;3;4 | E127: 3;4;5;7;10;10;15;15;15;15;15 | F127: 0;0;0;0;0;1;0;0;1;0;1;1;1
A128: 124 | B128: 5 | D128: 2;2;3;3;4;4;3;3;4;3;4 | E128: 3;4;5;7;10;10;15;15;15;15;15 | F128: 0;0;0;0;0;1;0;0;1;0;1;1;1
A129: 125 | B129: 5 | D129: 2;2;3;3;4;4;3;3;4;3;4 | E129: 3;4;5;7;10;10;15;15;15;15;15 | F129: 0;0;0;0;0;1;0;0;1;0;1;1;1
A130: 126 | B130: 5 | D130: 2;2;3;3;4;4;3;3;4;3;4 | E130: 3;4;5;7;10;10;15;15;15;15;15 | F130: 0;0;0;0;0;1;0;0;1;0;1;1;1
A131: 127 | B131: 5 | D131: 2;2;3;3;4;4;3;3;4;3;4 | E131: 3;4;5;7;10;10;15;15;15;15;15 | F131: 0;0;0;0;0;1;0;0;1;0;1;1;1
A132: 128 | B132: 5 | D132: 2;2;3;3;4;4;3;3;4;3;4 | E132: 3;4;5;7;10;10;15;15;15;15;15 | F132: 0;0;0;0;0;1;0;0;1;0;1;1;1
A133: 129 | B133: 5 | D133: 2;2;3;3;4;4;3;3;4;3;4 | E133: 3;4;5;7;10;10;15;15;15;15;15 | F133: 0;0;0;0;0;1;0;0;1;0;1;1;1
A134: 130 | B134: 5 | D134: 2;2;3;3;4;4;3;3;4;3;4 | E134: 3;4;5;7;10;10;15;15;15;15;15 | F134: 0;0;0;0;0;1;0;0;1;0;1;1;1
A135: 131 | B135: 5 | D135: 2;2;3;3;4;4;3;3;4;3;4 | E135: 3;4;5;7;10;10;15;15;15;15;15 | F135: 0;0;0;0;0;1;0;0;1;0;1;1;1
A136: 132 | B136: 5 | D136: 2;2;3;3;4;4;3;3;4;3;4 | E136: 3;4;5;7;10;10;15;15;15;15;15 | F136: 0;0;0;0;0;1;0;0;1;0;1;1;1
A137: 133 | B137: 5 | D137: 2;2;3;3;4;4;3;3;4;3;4 | E137: 3;4;5;7;10;10;15;15;15;15;15 | F137: 0;0;0;0;0;1;0;0;1;0;1;1;1
A138: 134 | B138: 5 | D138: 2;2;3;3;4;4;3;3;4;3;4 | E138: 3;4;5;7;10;10;15;15;15;15;15 | F138: 0;0;0;0;0;1;0;0;1;0;1;1;1
A139: 135 | B139: 5 | D139: 2;2;3;3;4;4;3;3;4;3;4 | E139: 3;4;5;7;10;10;15;15;15;15;15 | F139: 0;0;0;0;0;1;0;0;1;0;1;1;1
A140: 136 | B140: 5 | D140: 2;2;3;3;4;4;3;3;4;3;4 | E140: 3;4;5;7;10;10;15;15;15;15;15 | F140: 0;0;0;0;0;1;0;0;1;0;1;1;1
A141: 137 | B141: 5 | D141: 2;2;3;3;4;4;3;3;4;3;4 | E141: 3;4;5;7;10;10;15;15;15;15;15 | F141: 0;0;0;0;0;1;0;0;1;0;1;1;1
A142: 138 | B142: 5 | D142: 2;2;3;3;4;4;3;3;4;3;4 | E142: 3;4;5;7;10;10;15;15;15;15;15 | F142: 0;0;0;0;0;1;0;0;1;0;1;1;1
A143: 139 | B143: 5 | D143: 2;2;3;3;4;4;3;3;4;3;4 | E143: 3;4;5;7;10;10;15;15;15;15;15 | F143: 0;0;0;0;0;1;0;0;1;0;1;1;1
A144: 140 | B144: 5 | D144: 2;2;3;3;4;4;3;3;4;3;4 | E144: 3;4;5;7;10;10;15;15;15;15;15 | F144: 0;0;0;0;0;1;0;0;1;0;1;1;1
A145: 141 | B145: 5 | D145: 2;2;3;3;4;4;3;3;4;3;4 | E145: 3;4;5;7;10;10;15;15;15;15;15 | F145: 0;0;0;0;0;1;0;0;1;0;1;1;1
A146: 142 | B146: 5 | D146: 2;2;3;3;4;4;3;3;4;3;4 | E146: 3;4;5;7;10;10;15;15;15;15;15 | F146: 0;0;0;0;0;1;0;0;1;0;1;1;1
A147: 143 | B147: 5 | D147: 2;2;3;3;4;4;3;3;4;3;4 | E147: 3;4;5;7;10;10;15;15;15;15;15 | F147: 0;0;0;0;0;1;0;0;1;0;1;1;1
A148: 144 | B148: 5 | D148: 2;2;3;3;4;4;3;3;4;3;4 | E148: 3;4;5;7;10;10;15;15;15;15;15 | F148: 0;0;0;0;0;1;0;0;1;0;1;1;1
A149: 145 | B149: 5 | D149: 2;2;3;3;4;4;3;3;4;3;4 | E149: 3;4;5;7;10;10;15;15;15;15;15 | F149: 0;0;0;0;0;1;0;0;1;0;1;1;1
A150: 146 | B150: 5 | D150: 2;2;3;3;4;4;3;3;4;3;4 | E150: 3;4;5;7;10;10;15;15;15;15;15 | F150: 0;0;0;0;0;1;0;0;1;0;1;1;1
A151: 147 | B151: 5 | D151: 2;2;3;3;4;4;3;3;4;3;4 | E151: 3;4;5;7;10;10;15;15;15;15;15 | F151: 0;0;0;0;0;1;0;0;1;0;1;1;1
A152: 148 | B152: 5 | D152: 2;2;3;3;4;4;3;3;4;3;4 | E152: 3;4;5;7;10;10;15;15;15;15;15 | F152: 0;0;0;0;0;1;0;0;1;0;1;1;1
A153: 149 | B153: 5 | D153: 2;2;3;3;4;4;3;3;4;3;4 | E153: 3;4;5;7;10;10;15;15;15;15;15 | F153: 0;0;0;0;0;1;0;0;1;0;1;1;1
A154: 150 | B154: 5 | D154: 2;2;3;3;4;4;3;3;4;3;4 | E154: 3;4;5;7;10;10;15;15;15;15;15 | F154: 0;0;0;0;0;1;0;0;1;0;1;1;1
A155: 151 | B155: 5 | D155: 2;2;3;3;4;4;3;3;4;3;4 | E155: 3;4;5;7;10;10;15;15;15;15;15 | F155: 0;0;0;0;0;1;0;0;1;0;1;1;1
A156: 152 | B156: 5 | D156: 2;2;3;3;4;4;3;3;4;3;4 | E156: 3;4;5;7;10;10;15;15;15;15;15 | F156: 0;0;0;0;0;1;0;0;1;0;1;1;1
A157: 153 | B157: 5 | D157: 2;2;3;3;4;4;3;3;4;3;4 | E157: 3;4;5;7;10;10;15;15;15;15;15 | F157: 0;0;0;0;0;1;0;0;1;0;1;1;1
A158: 154 | B158: 5 | D158: 2;2;3;3;4;4;3;3;4;3;4 | E158: 3;4;5;7;10;10;15;15;15;15;15 | F158: 0;0;0;0;0;1;0;0;1;0;1;1;1
A159: 155 | B159: 5 | D159: 2;2;3;3;4;4;3;3;4;3;4 | E159: 3;4;5;7;10;10;15;15;15;15;15 | F159: 0;0;0;0;0;1;0;0;1;0;1;1;1
A160: 156 | B160: 5 | D160: 2;2;3;3;4;4;3;3;4;3;4 | E160: 3;4;5;7;10;10;15;15;15;15;15 | F160: 0;0;0;0;0;1;0;0;1;0;1;1;1
A161: 157 | B161: 5 | D161: 2;2;3;3;4;4;3;3;4;3;4 | E161: 3;4;5;7;10;10;15;15;15;15;15 | F161: 0;0;0;0;0;1;0;0;1;0;1;1;1
A162: 158 | B162: 5 | D162: 2;2;3;3;4;4;3;3;4;3;4 | E162: 3;4;5;7;10;10;15;15;15;15;15 | F162: 0;0;0;0;0;1;0;0;1;0;1;1;1
A163: 159 | B163: 5 | D163: 2;2;3;3;4;4;3;3;4;3;4 | E163: 3;4;5;7;10;10;15;15;15;15;15 | F163: 0;0;0;0;0;1;0;0;1;0;1;1;1
A164: 160 | B164: 5 | D164: 2;2;3;3;4;4;3;3;4;3;4 | E164: 3;4;5;7;10;10;15;15;15;15;15 | F164: 0;0;0;0;0;1;0;0;1;0;1;1;1
A165: 161 | B165: 5 | D165: 2;2;3;3;4;4;3;3;4;3;4 | E165: 3;4;5;7;10;10;15;15;15;15;15 | F165: 0;0;0;0;0;1;0;0;1;0;1;1;1
A166: 162 | B166: 5 | D166: 2;2;3;3;4;4;3;3;4;3;4 | E166: 3;4;5;7;10;10;15;15;15;15;15 | F166: 0;0;0;0;0;1;0;0;1;0;1;1;1
A167: 163 | B167: 5 | D167: 2;2;3;3;4;4;3;3;4;3;4 | E167: 3;4;5;7;10;10;15;15;15;15;15 | F167: 0;0;0;0;0;1;0;0;1;0;1;1;1
A168: 164 | B168: 5 | D168: 2;2;3;3;4;4;3;3;4;3;4 | E168: 3;4;5;7;10;10;15;15;15;15;15 | F168: 0;0;0;0;0;1;0;0;1;0;1;1;1
A169: 165 | B169: 5 | D169: 2;2;3;3;4;4;3;3;4;3;4 | E169: 3;4;5;7;10;10;15;15;15;15;15 | F169: 0;0;0;0;0;1;0;0;1;0;1;1;1
A170: 166 | B170: 5 | D170: 2;2;3;3;4;4;3;3;4;3;4 | E170: 3;4;5;7;10;10;15;15;15;15;15 | F170: 0;0;0;0;0;1;0;0;1;0;1;1;1
A171: 167 | B171: 5 | D171: 2;2;3;3;4;4;3;3;4;3;4 | E171: 3;4;5;7;10;10;15;15;15;15;15 | F171: 0;0;0;0;0;1;0;0;1;0;1;1;1
A172: 168 | B172: 5 | D172: 2;2;3;3;4;4;3;3;4;3;4 | E172: 3;4;5;7;10;10;15;15;15;15;15 | F172: 0;0;0;0;0;1;0;0;1;0;1;1;1
A173: 169 | B173: 5 | D173: 2;2;3;3;4;4;3;3;4;3;4 | E173: 3;4;5;7;10;10;15;15;15;15;15 | F173: 0;0;0;0;0;1;0;0;1;0;1;1;1
A174: 170 | B174: 5 | D174: 2;2;3;3;4;4;3;3;4;3;4 | E174: 3;4;5;7;10;10;15;15;15;15;15 | F174: 0;0;0;0;0;1;0;0;1;0;1;1;1
A175: 171 | B175: 5 | D175: 2;2;3;3;4;4;3;3;4;3;4 | E175: 3;4;5;7;10;10;15;15;15;15;15 | F175: 0;0;0;0;0;1;0;0;1;0;1;1;1
A176: 172 | B176: 5 | D176: 2;2;3;3;4;4;3;3;4;3;4 | E176: 3;4;5;7;10;10;15;15;15;15;15 | F176: 0;0;0;0;0;1;0;0;1;0;1;1;1
A177: 173 | B177: 5 | D177: 2;2;3;3;4;4;3;3;4;3;4 | E177: 3;4;5;7;10;10;15;15;15;15;15 | F177: 0;0;0;0;0;1;0;0;1;0;1;1;1
A178: 174 | B178: 5 | D178: 2;2;3;3;4;4;3;3;4;3;4 | E178: 3;4;5;7;10;10;15;15;15;15;15 | F178: 0;0;0;0;0;1;0;0;1;0;1;1;1
A179: 175 | B179: 5 | D179: 2;2;3;3;4;4;3;3;4;3;4 | E179: 3;4;5;7;10;10;15;15;15;15;15 | F179: 0;0;0;0;0;1;0;0;1;0;1;1;1
A180: 176 | B180: 5 | D180: 2;2;3;3;4;4;3;3;4;3;4 | E180: 3;4;5;7;10;10;15;15;15;15;15 | F180: 0;0;0;0;0;1;0;0;1;0;1;1;1
A181: 177 | B181: 5 | D181: 2;2;3;3;4;4;3;3;4;3;4 | E181: 3;4;5;7;10;10;15;15;15;15;15 | F181: 0;0;0;0;0;1;0;0;1;0;1;1;1
A182: 178 | B182: 5 | D182: 2;2;3;3;4;4;3;3;4;3;4 | E182: 3;4;5;7;10;10;15;15;15;15;15 | F182: 0;0;0;0;0;1;0;0;1;0;1;1;1
A183: 179 | B183: 5 | D183: 2;2;3;3;4;4;3;3;4;3;4 | E183: 3;4;5;7;10;10;15;15;15;15;15 | F183: 0;0;0;0;0;1;0;0;1;0;1;1;1
A184: 180 | B184: 5 | D184: 2;2;3;3;4;4;3;3;4;3;4 | E184: 3;4;5;7;10;10;15;15;15;15;15 | F184: 0;0;0;0;0;1;0;0;1;0;1;1;1
A185: 181 | B185: 5 | D185: 2;2;3;3;4;4;3;3;4;3;4 | E185: 3;4;5;7;10;10;15;15;15;15;15 | F185: 0;0;0;0;0;1;0;0;1;0;1;1;1
A186: 182 | B186: 5 | D186: 2;2;3;3;4;4;3;3;4;3;4 | E186: 3;4;5;7;10;10;15;15;15;15;15 | F186: 0;0;0;0;0;1;0;0;1;0;1;1;1
A187: 183 | B187: 5 | D187: 2;2;3;3;4;4;3;3;4;3;4 | E187: 3;4;5;7;10;10;15;15;15;15;15 | F187: 0;0;0;0;0;1;0;0;1;0;1;1;1
A188: 184 | B188: 5 | D188: 2;2;3;3;4;4;3;3;4;3;4 | E188: 3;4;5;7;10;10;15;15;15;15;15 | F188: 0;0;0;0;0;1;0;0;1;0;1;1;1
A189: 185 | B189: 5 | D189: 2;2;3;3;4;4;3;3;4;3;4 | E189: 3;4;5;7;10;10;15;15;15;15;15 | F189: 0;0;0;0;0;1;0;0;1;0;1;1;1
A190: 186 | B190: 5 | D190: 2;2;3;3;4;4;3;3;4;3;4 | E190: 3;4;5;7;10;10;15;15;15;15;15 | F190: 0;0;0;0;0;1;0;0;1;0;1;1;1
A191: 187 | B191: 5 | D191: 2;2;3;3;4;4;3;3;4;3;4 | E191: 3;4;5;7;10;10;15;15;15;15;15 | F191: 0;0;0;0;0;1;0;0;1;0;1;1;1
A192: 188 | B192: 5 | D192: 2;2;3;3;4;4;3;3;4;3;4 | E192: 3;4;5;7;10;10;15;15;15;15;15 | F192: 0;0;0;0;0;1;0;0;1;0;1;1;1
A193: 189 | B193: 5 | D193: 2;2;3;3;4;4;3;3;4;3;4 | E193: 3;4;5;7;10;10;15;15;15;15;15 | F193: 0;0;0;0;0;1;0;0;1;0;1;1;1
A194: 190 | B194: 5 | D194: 2;2;3;3;4;4;3;3;4;3;4 | E194: 3;4;5;7;10;10;15;15;15;15;15 | F194: 0;0;0;0;0;1;0;0;1;0;1;1;1
A195: 191 | B195: 5 | D195: 2;2;3;3;4;4;3;3;4;3;4 | E195: 3;4;5;7;10;10;15;15;15;15;15 | F195: 0;0;0;0;0;1;0;0;1;0;1;1;1
A196: 192 | B196: 5 | D196: 2;2;3;3;4;4;3;3;4;3;4 | E196: 3;4;5;7;10;10;15;15;15;15;15 | F196: 0;0;0;0;0;1;0;0;1;0;1;1;1
A197: 193 | B197: 5 | D197: 2;2;3;3;4;4;3;3;4;3;4 | E197: 3;4;5;7;10;10;15;15;15;15;15 | F197: 0;0;0;0;0;1;0;0;1;0;1;1;1
A198: 194 | B198: 5 | D198: 2;2;3;3;4;4;3;3;4;3;4 | E198: 3;4;5;7;10;10;15;15;15;15;15 | F198: 0;0;0;0;0;1;0;0;1;0;1;1;1
A199: 195 | B199: 5 | D199: 2;2;3;3;4;4;3;3;4;3;4 | E199: 3;4;5;7;10;10;15;15;15;15;15 | F199: 0;0;0;0;0;1;0;0;1;0;1;1;1
A200: 196 | B200: 5 | D200: 2;2;3;3;4;4;3;3;4;3;4 | E200: 3;4;5;7;10;10;15;15;15;15;15 | F200: 0;0;0;0;0;1;0;0;1;0;1;1;1
A201: 197 | B201: 5 | D201: 2;2;3;3;4;4;3;3;4;3;4 | E201: 3;4;5;7;10;10;15;15;15;15;15 | F201: 0;0;0;0;0;1;0;0;1;0;1;1;1
... 144 more rows

Sheet MonsterGroupConfig
A1: ID | B1: miniMonsterId | C1: eliteMonsterId
A2: int | B2: int[] | C2: int[]
A4: ID | B4: 全部可以刷的小怪怪物组 | C4: 全部可以耍的精英怪组
A5: 1 | B5: 9000101;9000107;9000108;9000109;9000101;9000107;9000101;9000107 | C5: 9000102;9000105;9000102
A6: 2 | B6: 9000101;9000107;9000108;9000109;9000101;9000107;9000101;9000107 | C6: 9000102;9000105;9000102
A7: 3 | B7: 9000104;9000107;9000108;9000109;9000101;9000107;9000101;9000107 | C7: 9000102;9000105;9000102
A8: 4 | B8: 9000104;9000107;9000108;9000109;9000101;9000107;9000101;9000107 | C8: 9000102;9000105;9000105

Sheet 产出
E1: 实际单个怪经验产出 | K1: 多少波升级一次 | M1: 英雄数量 | P1: 阶段额外提升经验 | X1: =SUBTOTAL(9,D2:D210) -> 1012767773 | Y1: =SUBTOTAL(9,E2:E250)/250 -> 62.376
A2: 1 | B2: 40 | D2: 10 | E2: =ROUND(D2/B2/K2*M2*(1+ROUND(A2/10,0)*$Q$2)/3,0) -> 2 | K2: 0.2 | M2: 4 | O2: =D3/D2 -> 1.2 | P2: 0 | Q2: 5 | R2: 0.1 | S2: =D2*2 -> 20 | T2: 1 | U2: =IF(MOD(A2,2)=0,0,E2) -> 2 | V2: =IF(MOD(A2,2)=0,0,S2) -> 20 | X2: =X1*4 -> 4051071092 | Y2: =Y1*40 -> 2495.04 | Z2: 100 | AA2: =Z2*E2/D2/4 -> 5 | AB2: =SUBTOTAL(9,AA2:AA124) -> 92122950 | AC2: =SUBTOTAL(9,AA2:AA52) -> 82128 | AD2: =SUM(D2:D51)*4 -> 308428 | AE2: 4
A3: 2 | B3: 40 | D3: 12 | E3: =ROUND(D3/B3/K3*M3*(1+ROUND(A3/10,0)*$Q$2)/3,0) -> 2 | K3: =K2*1.01 -> 0.202 | M3: 4 | O3: =D4/D3 -> 1.166666667 | P3: 0 | T3: 2 | U3: =IF(MOD(A3,2)=0,0,E3) -> 0 | AA3: =D3*2 -> 24
A4: 3 | B4: 40 | D4: 14 | E4: =ROUND(D4/B4/K4*M4*(1+ROUND(A4/10,0)*$Q$2)/3,0) -> 2 | K4: =K3*O3 -> 0.2356666667 | M4: 4 | O4: =D5/D4 -> 1.142857143 | P4: 0 | S4: =D4*2 -> 28 | T4: 3 | U4: =IF(MOD(A4,2)=0,0,E4) -> 2 | V4: =IF(MOD(A4,2)=0,0,S4) -> 28 | Y4: =X2/Y2 -> 1623649.758 | Z4: 100 | AA4: =Z4*E4/D4/4 -> 3.571428571 | AE4: =ROUND(AA4+AE2,0) -> 8
A5: 4 | B5: 40 | D5: 16 | E5: 2 | K5: =K4*O4 -> 0.2693333333 | M5: 4 | O5: =D6/D5 -> 1.1875 | P5: 0 | T5: 4 | U5: =IF(MOD(A5,2)=0,0,E5) -> 0 | AA5: =D5*2 -> 32
A6: 5 | B6: 40 | D6: 19 | E6: 12 | K6: =K5*O5 -> 0.3198333333 | M6: 4 | O6: 1.157894737 | P6: 0 | S6: =D6*2 -> 38 | T6: 5 | U6: 12 | V6: =IF(MOD(A6,2)=0,0,S6) -> 38 | Y6: =Y4/1.5/60/24 -> 751.6897027 | Z6: 100 | AA6: =Z6*E6/D6/4 -> 15.78947368 | AE6: =ROUND(AA6+AE4,0) -> 24
A7: 6 | B7: 40 | D7: 22 | E7: 12 | K7: 0.3703333333 | M7: 4 | O7: 1.136363636 | P7: 0 | T7: 6 | U7: 0 | AA7: =D7*2 -> 44
A8: 7 | B8: 40 | D8: 25 | E8: 12 | K8: 0.4208333333 | M8: 4 | O8: 1.16 | P8: 0 | S8: =D8*2 -> 50 | T8: 7 | U8: 12 | V8: =IF(MOD(A8,2)=0,0,S8) -> 50 | Z8: 100 | AA8: =Z8*E8/D8/4 -> 12 | AE8: =ROUND(AA8+AE6,0) -> 36
A9: 8 | B9: 40 | D9: 29 | E9: 12 | K9: 0.4881666667 | M9: 4 | O9: 1.172413793 | P9: 0 | T9: 8 | U9: 0 | Z9: 170 | AA9: =D9*2 -> 58
A10: 9 | B10: 40 | D10: 34 | E10: 12 | K10: 0.5723333333 | M10: 4 | O10: 1.147058824 | P10: 0 | S10: =D10*2 -> 68 | T10: 9 | U10: 12 | V10: =IF(MOD(A10,2)=0,0,S10) -> 68 | Z10: 100 | AA10: =Z10*E10/D10/4 -> 8.823529412 | AE10: =ROUND(AA10+AE8,0) -> 45
A11: 10 | B11: 40 | D11: 39 | E11: 12 | K11: 0.6565 | M11: 4 | O11: 1.153846154 | P11: 0.1 | T11: 10 | U11: 0 | Z11: 190 | AA11: =D11*2 -> 78
A12: 11 | B12: 40 | D12: 45 | E12: 12 | K12: 0.7575 | M12: 4 | O12: 1.155555556 | P12: 0.1 | S12: =D12*2 -> 90 | T12: 11 | U12: 12 | V12: =IF(MOD(A12,2)=0,0,S12) -> 90 | Z12: 100 | AA12: =Z12*E12/D12/4 -> 6.666666667 | AE12: =ROUND(AA12+AE10,0) -> 52
A13: 12 | B13: 40 | D13: 52 | E13: 12 | K13: 0.8753333333 | M13: 4 | O13: 1.153846154 | P13: 0.1 | T13: 12 | U13: 0 | Z13: 210 | AA13: =D13*2 -> 104
A14: 13 | B14: 40 | D14: 60 | E14: 12 | K14: 1.01 | M14: 4 | O14: 1.15 | P14: 0.1 | S14: =D14*2 -> 120 | T14: 13 | U14: 12 | V14: =IF(MOD(A14,2)=0,0,S14) -> 120 | Z14: 100 | AA14: =Z14*E14/D14/4 -> 5 | AE14: =ROUND(AA14+AE12,0) -> 57
A15: 14 | B15: 40 | D15: 69 | E15: 12 | K15: 1.1615 | M15: 4 | O15: 1.15942029 | P15: 0.1 | T15: 14 | U15: 0 | Z15: 230 | AA15: =D15*2 -> 138
A16: 15 | B16: 40 | D16: 80 | E16: 22 | K16: 1.346666667 | M16: 4 | O16: 1.15 | P16: 0.1 | S16: =D16*2 -> 160 | T16: 15 | U16: 22 | V16: =IF(MOD(A16,2)=0,0,S16) -> 160 | Z16: 100 | AA16: =Z16*E16/D16/4 -> 6.875 | AE16: =ROUND(AA16+AE14,0) -> 64
A17: 16 | B17: 40 | D17: 92 | E17: 22 | K17: 1.548666667 | M17: 4 | O17: =D18/D17 -> 1.152173913 | P17: 0.1 | T17: 16 | U17: 0 | Z17: 250 | AA17: =D17*2 -> 184
A18: 17 | B18: 40 | D18: 106 | E18: 22 | K18: 1.784333333 | M18: 4 | O18: 1.150943396 | P18: 0.1 | S18: =D18*2 -> 212 | T18: 17 | U18: 22 | V18: =IF(MOD(A18,2)=0,0,S18) -> 212 | Z18: 100 | AA18: =Z18*E18/D18/4 -> 5.188679245 | AE18: =ROUND(AA18+AE16,0) -> 69
A19: 18 | B19: 40 | D19: 122 | E19: 22 | K19: 2.053666667 | M19: 4 | O19: 1.155737705 | P19: 0.1 | T19: 18 | U19: 0 | Z19: 270 | AA19: =D19*2 -> 244
A20: 19 | B20: 40 | D20: 141 | E20: 22 | K20: 2.3735 | M20: 4 | O20: 1.156028369 | P20: 0.1 | S20: =D20*2 -> 282 | T20: 19 | U20: 22 | V20: =IF(MOD(A20,2)=0,0,S20) -> 282 | Z20: 110 | AA20: =Z20*E20/D20/4 -> 4.290780142 | AE20: =ROUND(AA20+AE18,0) -> 73
A21: 20 | B21: 40 | D21: 163 | E21: 22 | K21: 2.743833333 | M21: 4 | O21: 1.153374233 | P21: 0.2 | T21: 20 | U21: 0 | Z21: 290 | AA21: =D21*2 -> 326
A22: 21 | B22: 40 | D22: 188 | E22: 22 | K22: 3.164666667 | M22: 4 | O22: 1.154255319 | P22: 0.2 | S22: =D22*2 -> 376 | T22: 21 | U22: 22 | V22: =IF(MOD(A22,2)=0,0,S22) -> 376 | Z22: 110 | AA22: =Z22*E22/D22/4 -> 3.218085106 | AE22: =ROUND(AA22+AE20,0) -> 76
A23: 22 | B23: 40 | D23: 217 | E23: 22 | K23: 3.652833333 | M23: 4 | O23: 1.152073733 | P23: 0.2 | T23: 22 | U23: 0 | Z23: 310 | AA23: =D23*2 -> 434
A24: 23 | B24: 40 | D24: 250 | E24: 22 | K24: 4.208333333 | M24: 4 | O24: 1.152 | P24: 0.2 | S24: =D24*2 -> 500 | T24: 23 | U24: 22 | V24: =IF(MOD(A24,2)=0,0,S24) -> 500 | Z24: 110 | AA24: =Z24*E24/D24/4 -> 2.42 | AE24: =ROUND(AA24+AE22,0) -> 78
A25: 24 | B25: 40 | D25: 288 | E25: 22 | K25: 4.848 | M25: 4 | O25: 1.152777778 | P25: 0.2 | T25: 24 | U25: 0 | Z25: 330 | AA25: =D25*2 -> 576
A26: 25 | B26: 40 | D26: 332 | E26: 32 | K26: 5.588666667 | M26: 4 | O26: 1.15060241 | P26: 0.2 | S26: =D26*2 -> 664 | T26: 25 | U26: 32 | V26: =IF(MOD(A26,2)=0,0,S26) -> 664 | Z26: 110 | AA26: =Z26*E26/D26/4 -> 2.65060241 | AE26: =ROUND(AA26+AE24,0) -> 81
A27: 26 | B27: 40 | D27: 382 | E27: 32 | K27: 6.430333333 | M27: 4 | O27: 1.14921466 | P27: 0.2 | T27: 26 | U27: 0 | Z27: 350 | AA27: =D27*2 -> 764
A28: 27 | B28: 40 | D28: 439 | E28: 32 | K28: 7.389833333 | M28: 4 | O28: 1.150341686 | P28: 0.2 | S28: =D28*2 -> 878 | T28: 27 | U28: 32 | V28: =IF(MOD(A28,2)=0,0,S28) -> 878 | Z28: 110 | AA28: =Z28*E28/D28/4 -> 2.004555809 | AE28: =ROUND(AA28+AE26,0) -> 83
A29: 28 | B29: 40 | D29: 505 | E29: 32 | K29: 8.500833333 | M29: 4 | O29: 1.148514851 | P29: 0.2 | T29: 28 | U29: 0 | Z29: 370 | AA29: =D29*2 -> 1010
A30: 29 | B30: 40 | D30: 580 | E30: 32 | K30: 9.763333333 | M30: 4 | O30: 1.148275862 | P30: 0.2 | S30: =D30*2 -> 1160 | T30: 29 | U30: 32 | V30: =IF(MOD(A30,2)=0,0,S30) -> 1160 | Z30: 110 | AA30: =Z30*E30/D30/4 -> 1.517241379 | AE30: =ROUND(AA30+AE28,0) -> 85
A31: 30 | B31: 40 | D31: 666 | E31: 32 | K31: 11.211 | M31: 4 | O31: 1.147147147 | P31: 0.3 | T31: 30 | U31: 0 | Z31: 390 | AA31: =D31*2 -> 1332
A32: 31 | B32: 40 | D32: 764 | E32: 32 | K32: 12.86066667 | M32: 4 | O32: 1.147905759 | P32: 0.3 | S32: =D32*2 -> 1528 | T32: 31 | U32: 32 | V32: =IF(MOD(A32,2)=0,0,S32) -> 1528 | Z32: 110 | AA32: =Z32*E32/D32/4 -> 1.151832461 | AE32: =ROUND(AA32+AE30,0) -> 86
A33: 32 | B33: 40 | D33: 877 | E33: 32 | K33: 14.76283333 | M33: 4 | O33: 1.14709236 | P33: 0.3 | T33: 32 | U33: 0 | Z33: 410 | AA33: =D33*2 -> 1754
A34: 33 | B34: 40 | D34: 1006 | E34: 32 | K34: 16.93433333 | M34: 4 | O34: 1.14612326 | P34: 0.3 | S34: =D34*2 -> 2012 | T34: 33 | U34: 32 | V34: =IF(MOD(A34,2)=0,0,S34) -> 2012 | Z34: 110 | AA34: =Z34*E34/D34/4 -> 0.8747514911 | AE34: =ROUND(AA34+AE32,0) -> 87
A35: 34 | B35: 40 | D35: 1153 | E35: 32 | K35: 19.40883333 | M35: 4 | O35: 1.145706852 | P35: 0.3 | T35: 34 | U35: 0 | Z35: 430 | AA35: =D35*2 -> 2306
A36: 35 | B36: 40 | D36: 1321 | E36: 42 | K36: 22.23683333 | M36: 4 | O36: 1.145344436 | P36: 0.3 | S36: =D36*2 -> 2642 | T36: 35 | U36: 42 | V36: =IF(MOD(A36,2)=0,0,S36) -> 2642 | Z36: 110 | AA36: =Z36*E36/D36/4 -> 0.874337623 | AE36: =ROUND(AA36+AE34,0) -> 88
A37: 36 | B37: 40 | D37: 1513 | E37: 42 | K37: 25.46883333 | M37: 4 | O37: 1.144745539 | P37: 0.3 | T37: 36 | U37: =IF(MOD(A37,2)=0,0,E37) -> 0 | Z37: 450 | AA37: =D37*2 -> 3026
A38: 37 | B38: 40 | D38: 1732 | E38: 42 | K38: 29.15533333 | M38: 4 | O38: 1.143764434 | P38: 0.3 | S38: =D38*2 -> 3464 | T38: 37 | U38: 42 | V38: =IF(MOD(A38,2)=0,0,S38) -> 3464 | Z38: 110 | AA38: =Z38*E38/D38/4 -> 0.6668591224 | AE38: =ROUND(AA38+AE36,0) -> 89
A39: 38 | B39: 40 | D39: 1981 | E39: 42 | K39: 33.34683333 | M39: 4 | O39: 1.143361938 | P39: 0.3 | T39: 38 | U39: 0 | Z39: 470 | AA39: =D39*2 -> 3962
A40: 39 | B40: 40 | D40: 2265 | E40: 42 | K40: 38.1275 | M40: 4 | O40: 1.142604857 | P40: 0.3 | S40: =D40*2 -> 4530 | T40: 39 | U40: 42 | V40: =IF(MOD(A40,2)=0,0,S40) -> 4530 | Z40: 110 | AA40: =Z40*E40/D40/4 -> 0.5099337748 | AE40: =ROUND(AA40+AE38,0) -> 90
A41: 40 | B41: 40 | D41: 2588 | E41: 42 | K41: 43.56466667 | M41: 4 | O41: 1.142194745 | P41: 0.3 | T41: 40 | U41: 0 | Z41: 490 | AA41: =D41*2 -> 5176
A42: 41 | B42: 40 | D42: 2956 | E42: 42 | K42: 49.75933333 | M42: 4 | O42: 1.141745602 | P42: 0.3 | S42: =D42*2 -> 5912 | T42: 41 | U42: 42 | V42: =IF(MOD(A42,2)=0,0,S42) -> 5912 | Z42: 110 | AA42: =Z42*E42/D42/4 -> 0.3907307172 | AE42: =ROUND(AA42+AE40,0) -> 90
A43: 42 | B43: 40 | D43: 3375 | E43: 42 | K43: 56.8125 | M43: 4 | O43: 1.141037037 | P43: 0.3 | T43: 42 | U43: 0 | Z43: 510 | AA43: =D43*2 -> 6750
A44: 43 | B44: 40 | D44: 3851 | E44: 42 | K44: 64.82516667 | M44: 4 | O44: 1.140482991 | P44: 0.3 | S44: =D44*2 -> 7702 | T44: 43 | U44: 42 | V44: =IF(MOD(A44,2)=0,0,S44) -> 7702 | Z44: 110 | AA44: =Z44*E44/D44/4 -> 0.2999220982 | AE44: =ROUND(AA44+AE42,0) -> 90
A45: 44 | B45: 40 | D45: 4392 | E45: 42 | K45: 73.932 | M45: 4 | O45: 1.139344262 | P45: 0.3 | T45: 44 | U45: 0 | Z45: 530 | AA45: =D45*2 -> 8784
A46: 45 | B46: 40 | D46: 5004 | E46: 51 | K46: 84.234 | M46: 4 | O46: 1.138089528 | P46: 0.3 | S46: =D46*2 -> 10008 | T46: 45 | U46: 51 | V46: =IF(MOD(A46,2)=0,0,S46) -> 10008 | Z46: 110 | AA46: =Z46*E46/D46/4 -> 0.2802757794 | AE46: =ROUND(AA46+AE44,0) -> 90
A47: 46 | B47: 40 | D47: 5695 | E47: 51 | K47: 95.86583333 | M47: 4 | O47: 1.136962248 | P47: 0.3 | T47: 46 | U47: 0 | Z47: 550 | AA47: =D47*2 -> 11390
A48: 47 | B48: 40 | D48: 6475 | E48: 51 | K48: 108.9958333 | M48: 4 | O48: 1.135907336 | P48: 0.3 | S48: =D48*2 -> 12950 | T48: 47 | U48: 51 | V48: =IF(MOD(A48,2)=0,0,S48) -> 12950 | Z48: 110 | AA48: =Z48*E48/D48/4 -> 0.2166023166 | AE48: =ROUND(AA48+AE46,0) -> 90
A49: 48 | B49: 40 | D49: 7355 | E49: 51 | K49: 123.8091667 | M49: 4 | O49: 1.134738273 | P49: 0.3 | T49: 48 | U49: 0 | Z49: 570 | AA49: =D49*2 -> 14710
A50: 49 | B50: 40 | D50: 8346 | E50: 51 | K50: 140.491 | M50: 4 | O50: 1.133596933 | P50: 0.3 | S50: =D50*2 -> 16692 | T50: 49 | U50: 51 | V50: =IF(MOD(A50,2)=0,0,S50) -> 16692 | Z50: 110 | AA50: =Z50*E50/D50/4 -> 0.1680445723 | AE50: =ROUND(AA50+AE48,0) -> 90
A51: 50 | B51: 40 | D51: 9461 | E51: 51 | K51: 159.2601667 | M51: 4 | O51: 1.132438431 | P51: 0.3 | T51: 50 | U51: 0 | Z51: 590 | AA51: =D51*2 -> 18922
A52: 51 | B52: 40 | D52: 10714 | E52: 51 | K52: 180.3523333 | M52: 4 | O52: 1.131323502 | P52: 0.3 | S52: =D52*2 -> 21428 | T52: 51 | U52: 51 | V52: =IF(MOD(A52,2)=0,0,S52) -> 21428 | Z52: 130 | AA52: =Z52*E52/D52/4 -> 0.1547041254 | AE52: =ROUND(AA52+AE50,0) -> 90
A53: 52 | B53: 40 | D53: 12121 | E53: 51 | K53: 204.0368333 | M53: 4 | O53: 1.130187278 | P53: 0.3 | T53: 52 | U53: 0 | Z53: 610 | AA53: =D53*2 -> 24242
A54: 53 | B54: 40 | D54: 13699 | E54: 51 | K54: =K53*O53 -> 230.5998333 | M54: 4 | O54: 1.129060515 | P54: 0.3 | S54: =D54*2 -> 27398 | T54: 53 | U54: 51 | V54: =IF(MOD(A54,2)=0,0,S54) -> 27398 | Z54: 130 | AA54: =Z54*E54/D54/4 -> 0.1209942332 | AE54: =ROUND(AA54+AE52,0) -> 90
A55: 54 | B55: 40 | D55: 15467 | E55: 51 | K55: 260.3611667 | M55: 4 | O55: 1.127949829 | P55: 0.3 | T55: 54 | U55: 0 | Z55: 630 | AA55: =D55*2 -> 30934
A56: 55 | B56: 40 | D56: 17446 | E56: 61 | K56: 293.6743333 | M56: 4 | O56: 1.126848561 | P56: 0.3 | S56: =D56*2 -> 34892 | T56: 55 | U56: 61 | V56: =IF(MOD(A56,2)=0,0,S56) -> 34892 | Z56: 130 | AA56: =Z56*E56/D56/4 -> 0.1136363636 | AE56: =ROUND(AA56+AE54,0) -> 90
A57: 56 | B57: 40 | D57: 19659 | E57: 61 | K57: 330.9265 | M57: 4 | O57: 1.125693067 | P57: 0.3 | T57: 56 | U57: 0 | Z57: 650 | AA57: =D57*2 -> 39318
A58: 57 | B58: 40 | D58: 22130 | E58: 61 | K58: 372.5216667 | M58: 4 | O58: 1.124582015 | P58: 0.3 | S58: =D58*2 -> 44260 | T58: 57 | U58: 61 | V58: =IF(MOD(A58,2)=0,0,S58) -> 44260 | Z58: 130 | AA58: =Z58*E58/D58/4 -> 0.08958427474 | AE58: =ROUND(AA58+AE56,0) -> 90
A59: 58 | B59: 40 | D59: 24887 | E59: 61 | K59: 418.9311667 | M59: 4 | O59: 1.123437939 | P59: 0.3 | T59: 58 | U59: 0 | Z59: 670 | AA59: =D59*2 -> 49774
A60: 59 | B60: 40 | D60: 27959 | E60: 61 | K60: 470.6431667 | M60: 4 | O60: 1.122321971 | P60: 0.3 | S60: =D60*2 -> 55918 | T60: 59 | U60: 61 | V60: =IF(MOD(A60,2)=0,0,S60) -> 55918 | Z60: 130 | AA60: =Z60*E60/D60/4 -> 0.07090740012 | AE60: =ROUND(AA60+AE58,0) -> 90
A61: 60 | B61: 40 | D61: 31379 | E61: 61 | K61: 528.2131667 | M61: 4 | O61: 1.121195704 | P61: 0.3 | T61: 60 | U61: 0 | Z61: 690 | AA61: =D61*2 -> 62758
A62: 61 | B62: 40 | D62: 35182 | E62: 61 | K62: 592.2303333 | M62: 4 | O62: 1.120089819 | P62: 0.3 | S62: =D62*2 -> 70364 | T62: 61 | U62: 61 | V62: =IF(MOD(A62,2)=0,0,S62) -> 70364 | Z62: 130 | AA62: =Z62*E62/D62/4 -> 0.05634983799 | AE62: =ROUND(AA62+AE60,0) -> 90
A63: 62 | B63: 40 | D63: 39407 | E63: 61 | K63: 663.3511667 | M63: 4 | O63: 1.118963636 | P63: 0.3 | T63: 62 | U63: 0 | Z63: 710 | AA63: =D63*2 -> 78814
A64: 63 | B64: 40 | D64: 44095 | E64: 61 | K64: 742.2658333 | M64: 4 | O64: 1.117859168 | P64: 0.3 | S64: =D64*2 -> 88190 | T64: 63 | U64: 61 | V64: =IF(MOD(A64,2)=0,0,S64) -> 88190 | Z64: 130 | AA64: =Z64*E64/D64/4 -> 0.044959746 | AE64: =ROUND(AA64+AE62,0) -> 90
A65: 64 | B65: 40 | D65: 49292 | E65: 61 | K65: 829.7486667 | M65: 4 | O65: 1.116732938 | P65: 0.3 | T65: 64 | U65: 0 | Z65: 730 | AA65: =D65*2 -> 98584
A66: 65 | B66: 40 | D66: 55046 | E66: 71 | K66: 926.6076667 | M66: 4 | O66: 1.115612397 | P66: 0.3 | S66: =D66*2 -> 110092 | T66: 65 | U66: 71 | V66: =IF(MOD(A66,2)=0,0,S66) -> 110092 | Z66: 130 | AA66: =Z66*E66/D66/4 -> 0.04191948552 | AE66: =ROUND(AA66+AE64,0) -> 90
A67: 66 | B67: 40 | D67: 61410 | E67: =ROUND(D67/B67/K67*M67*(1+ROUND(A67/10,0)*$Q$2)/3,0) -> 71 | K67: 1033.735 | M67: 4 | O67: 1.114492754 | P67: 0.3 | T67: 66 | U67: 0 | Z67: 750 | AA67: =D67*2 -> 122820
A68: 67 | B68: 40 | D68: 68441 | E68: 71 | K68: 1152.090167 | M68: 4 | O68: 1.113382329 | P68: 0.3 | S68: =D68*2 -> 136882 | T68: 67 | U68: 71 | V68: =IF(MOD(A68,2)=0,0,S68) -> 136882 | Z68: 130 | AA68: =Z68*E68/D68/4 -> 0.03371517073 | AE68: =ROUND(AA68+AE66,0) -> 90
A69: 68 | B69: 40 | D69: 76201 | E69: 71 | K69: 1282.716833 | M69: 4 | O69: 1.112268868 | P69: 0.3 | T69: 68 | U69: =IF(MOD(A69,2)=0,0,E69) -> 0 | Z69: 770 | AA69: =D69*2 -> 152402
A70: 69 | B70: 40 | D70: 84756 | E70: 71 | K70: 1426.726 | M70: 4 | O70: 1.111154373 | P70: 0.3 | S70: =D70*2 -> 169512 | T70: 69 | U70: 71 | V70: =IF(MOD(A70,2)=0,0,S70) -> 169512 | Z70: 130 | AA70: =Z70*E70/D70/4 -> 0.02722521119 | AE70: =ROUND(AA70+AE68,0) -> 90
A71: 70 | B71: 40 | D71: 94177 | E71: 71 | K71: 1585.312833 | M71: 4 | O71: 1.110048101 | P71: 0.3 | T71: 70 | U71: 0 | Z71: 790 | AA71: =D71*2 -> 188354
A72: 71 | B72: 40 | D72: 104541 | E72: 71 | K72: 1759.7735 | M72: 4 | O72: 1.108933337 | P72: 0.3 | S72: =D72*2 -> 209082 | T72: 71 | U72: 71 | V72: =IF(MOD(A72,2)=0,0,S72) -> 209082 | Z72: 130 | AA72: =Z72*E72/D72/4 -> 0.02207267962 | AE72: =ROUND(AA72+AE70,0) -> 90
A73: 72 | B73: 40 | D73: 115929 | E73: 71 | K73: 1951.4715 | M73: 4 | O73: 1.107824617 | P73: 0.3 | T73: 72 | U73: 0 | Z73: 810 | AA73: =D73*2 -> 231858
A74: 73 | B74: 40 | D74: 128429 | E74: 71 | K74: 2161.888167 | M74: 4 | O74: 1.106720445 | P74: 0.3 | S74: =D74*2 -> 256858 | T74: 73 | U74: 71 | V74: =IF(MOD(A74,2)=0,0,S74) -> 256858 | Z74: 130 | AA74: =Z74*E74/D74/4 -> 0.0179671258 | AE74: =ROUND(AA74+AE72,0) -> 90
A75: 74 | B75: 40 | D75: 142135 | E75: 71 | K75: 2392.605833 | M75: 4 | O75: 1.105610863 | P75: 0.3 | T75: 74 | U75: 0 | Z75: 830 | AA75: =D75*2 -> 284270
A76: 75 | B76: 40 | D76: 157146 | E76: 81 | K76: 2645.291 | M76: 4 | O76: 1.10450791 | P76: 0.3 | S76: =D76*2 -> 314292 | T76: 75 | U76: 81 | V76: =IF(MOD(A76,2)=0,0,S76) -> 314292 | Z76: 130 | AA76: =Z76*E76/D76/4 -> 0.01675193769 | AE76: =ROUND(AA76+AE74,0) -> 90
A77: 76 | B77: 40 | D77: 173569 | E77: 81 | K77: 2921.744833 | M77: 4 | O77: 1.103405562 | P77: 0.3 | T77: 76 | U77: 0 | Z77: 850 | AA77: =D77*2 -> 347138
A78: 77 | B78: 40 | D78: 191517 | E78: 81 | K78: 3223.8695 | M78: 4 | O78: 1.102299013 | P78: 0.3 | S78: =D78*2 -> 383034 | T78: 77 | U78: 81 | V78: =IF(MOD(A78,2)=0,0,S78) -> 383034 | Z78: 130 | AA78: =Z78*E78/D78/4 -> 0.01374551606 | AE78: =ROUND(AA78+AE76,0) -> 90
A79: 78 | B79: 40 | D79: 211109 | E79: 81 | K79: 3553.668167 | M79: 4 | O79: 1.101198907 | P79: 0.3 | T79: 78 | U79: 0 | Z79: 870 | AA79: =D79*2 -> 422218
A80: 79 | B80: 40 | D80: 232473 | E80: 81 | K80: 3913.2955 | M80: 4 | O80: 1.100097646 | P80: 0.3 | S80: =D80*2 -> 464946 | T80: 79 | U80: 81 | V80: =IF(MOD(A80,2)=0,0,S80) -> 464946 | Z80: 130 | AA80: =Z80*E80/D80/4 -> 0.01132389568 | AE80: =ROUND(AA80+AE78,0) -> 90
A81: 80 | B81: 40 | D81: 255743 | E81: 81 | K81: 4305.007167 | M81: 4 | O81: =D82/D81 -> 1.098997822 | P81: 0.3 | T81: 80 | U81: 0 | Z81: 890 | AA81: =D81*2 -> 511486
A82: 81 | B82: 40 | D82: 281061 | E82: 81 | K82: 4731.1935 | M82: 4 | O82: 1.097896898 | P82: 0.3 | S82: =D82*2 -> 562122 | T82: 81 | U82: 81 | V82: =IF(MOD(A82,2)=0,0,S82) -> 562122 | Z82: 130 | AA82: =Z82*E82/D82/4 -> 0.00936629415 | AE82: =ROUND(AA82+AE80,0) -> 90
A83: 82 | B83: 40 | D83: 308576 | E83: 81 | K83: 5194.362667 | M83: 4 | O83: 1.096799492 | P83: 0.3 | T83: 82 | U83: 0 | Z83: 910 | AA83: =D83*2 -> 617152
A84: 83 | B84: 40 | D84: 338446 | E84: 81 | K84: 5697.174333 | M84: 4 | O84: 1.095702121 | P84: 0.3 | S84: =D84*2 -> 676892 | T84: 83 | U84: 81 | V84: =IF(MOD(A84,2)=0,0,S84) -> 676892 | Z84: 150 | AA84: =Z84*E84/D84/4 -> 0.008974843845 | AE84: =ROUND(AA84+AE82,0) -> 90
A85: 84 | B85: 40 | D85: 370836 | E85: 81 | K85: 6242.406 | M85: 4 | O85: 1.094607859 | P85: 0.3 | T85: 84 | U85: 0 | Z85: 930 | AA85: =D85*2 -> 741672
A86: 85 | B86: 40 | D86: 405920 | E86: 91 | K86: 6832.986667 | M86: 4 | O86: 1.0935135 | P86: 0.3 | S86: =D86*2 -> 811840 | T86: 85 | U86: 91 | V86: =IF(MOD(A86,2)=0,0,S86) -> 811840 | Z86: 150 | AA86: =Z86*E86/D86/4 -> 0.008406828932 | AE86: =ROUND(AA86+AE84,0) -> 90
A87: 86 | B87: 40 | D87: 443879 | E87: 91 | K87: 7471.963167 | M87: 4 | O87: 1.09241933 | P87: 0.3 | T87: 86 | U87: 0 | Z87: 950 | AA87: =D87*2 -> 887758
A88: 87 | B88: 40 | D88: 484902 | E88: 91 | K88: 8162.517 | M88: 4 | O88: 1.091327732 | P88: 0.3 | S88: =D88*2 -> 969804 | T88: 87 | U88: 91 | V88: =IF(MOD(A88,2)=0,0,S88) -> 969804 | Z88: 150 | AA88: =Z88*E88/D88/4 -> 0.007037504485 | AE88: =ROUND(AA88+AE86,0) -> 90
A89: 88 | B89: 40 | D89: 529187 | E89: 91 | K89: 8907.981167 | M89: 4 | O89: 1.090236533 | P89: 0.3 | T89: 88 | U89: 0 | Z89: 970 | AA89: =D89*2 -> 1058374
A90: 89 | B90: 40 | D90: 576939 | E90: 91 | K90: 9711.8065 | M90: 4 | O90: 1.089144606 | P90: 0.3 | S90: =D90*2 -> 1153878 | T90: 89 | U90: 91 | V90: =IF(MOD(A90,2)=0,0,S90) -> 1153878 | Z90: 150 | AA90: =Z90*E90/D90/4 -> 0.005914836751 | AE90: =ROUND(AA90+AE88,0) -> 90
A91: 90 | B91: 40 | D91: 628370 | E91: 91 | K91: 10577.56167 | M91: 4 | O91: 1.0880564 | P91: 0.3 | T91: 90 | U91: 0 | Z91: 990 | AA91: =D91*2 -> 1256740
A92: 91 | B92: 40 | D92: 683702 | E92: 91 | K92: 11508.98367 | M92: 4 | O92: 1.086967714 | P92: 0.3 | S92: =D92*2 -> 1367404 | T92: 91 | U92: 91 | V92: =IF(MOD(A92,2)=0,0,S92) -> 1367404 | Z92: 150 | AA92: =Z92*E92/D92/4 -> 0.004991209621 | AE92: =ROUND(AA92+AE90,0) -> 90
A93: 92 | B93: 40 | D93: 743162 | E93: 91 | K93: 12509.89367 | M93: 4 | O93: 1.085881679 | P93: 0.3 | T93: 92 | U93: 0 | Z93: 1010 | AA93: =D93*2 -> 1486324
A94: 93 | B94: 40 | D94: 806986 | E94: 91 | K94: 13584.26433 | M94: 4 | O94: 1.084795771 | P94: 0.3 | S94: =D94*2 -> 1613972 | T94: 93 | U94: 91 | V94: =IF(MOD(A94,2)=0,0,S94) -> 1613972 | Z94: 150 | AA94: =Z94*E94/D94/4 -> 0.004228697896 | AE94: =ROUND(AA94+AE92,0) -> 90
A95: 94 | B95: 40 | D95: 875415 | E95: 91 | K95: 14736.1525 | M95: 4 | O95: 1.083710012 | P95: 0.3 | T95: 94 | U95: 0 | Z95: 1030 | AA95: =D95*2 -> 1750830
A96: 95 | B96: 40 | D96: 948696 | E96: 101 | K96: 15969.716 | M96: 4 | O96: 1.082627101 | P96: 0.3 | S96: =D96*2 -> 1897392 | T96: 95 | U96: 101 | V96: =IF(MOD(A96,2)=0,0,S96) -> 1897392 | Z96: 150 | AA96: =Z96*E96/D96/4 -> 0.003992322093 | AE96: =ROUND(AA96+AE94,0) -> 90
A97: 96 | B97: 40 | D97: 1027084 | E97: 101 | K97: 17289.24733 | M97: 4 | O97: 1.08154445 | P97: 0.3 | T97: 96 | U97: 0 | Z97: 1050 | AA97: =D97*2 -> 2054168
A98: 97 | B98: 40 | D98: 1110837 | E98: 101 | K98: 18699.0895 | M98: 4 | O98: 1.08046275 | P98: 0.3 | S98: =D98*2 -> 2221674 | T98: 97 | U98: 101 | V98: =IF(MOD(A98,2)=0,0,S98) -> 2221674 | Z98: 150 | AA98: =Z98*E98/D98/4 -> 0.003409591146 | AE98: =ROUND(AA98+AE96,0) -> 90
A99: 98 | B99: 40 | D99: 1200218 | E99: 101 | K99: 20203.66967 | M99: 4 | O99: 1.079382246 | P99: 0.3 | T99: 98 | U99: 0 | Z99: 1070 | AA99: =D99*2 -> 2400436
A100: 99 | B100: 40 | D100: 1295494 | E100: 101 | K100: 21807.48233 | M100: 4 | O100: 1.078302949 | P100: 0.3 | S100: =D100*2 -> 2590988 | T100: 99 | U100: 101 | V100: =IF(MOD(A100,2)=0,0,S100) -> 2590988 | Z100: 150 | AA100: =Z100*E100/D100/4 -> 0.002923595169 | AE100: =ROUND(AA100+AE98,0) -> 90
A101: 100 | B101: 40 | D101: 1396935 | E101: 101 | K101: 23515.0725 | M101: 4 | O101: 1.077224781 | P101: 0.3 | T101: 100 | U101: =IF(MOD(A101,2)=0,0,E101) -> 0 | Z101: 1090 | AA101: =D101*2 -> 2793870
A102: 101 | B102: 40 | D102: 1504813 | E102: 101 | K102: 25331.01883 | M102: 4 | O102: 1.076147003 | P102: 0.3 | S102: =D102*2 -> 3009626 | T102: 101 | U102: 101 | V102: =IF(MOD(A102,2)=0,0,S102) -> 3009626 | Z102: 150 | AA102: =Z102*E102/D102/4 -> 0.00251692403 | AE102: =ROUND(AA102+AE100,0) -> 90
A103: 102 | B103: 40 | D103: 1619400 | E103: 101 | K103: 27259.9 | M103: 4 | O103: 1.075071014 | P103: 0.3 | T103: 102 | U103: 0 | Z103: 1110 | AA103: =D103*2 -> 3238800
A104: 103 | B104: 40 | D104: 1740970 | E104: 101 | K104: 29306.32833 | M104: 4 | O104: 1.073996106 | P104: 0.3 | S104: =D104*2 -> 3481940 | T104: 103 | U104: 101 | V104: =IF(MOD(A104,2)=0,0,S104) -> 3481940 | Z104: 150 | AA104: =Z104*E104/D104/4 -> 0.002175511353 | AE104: =ROUND(AA104+AE102,0) -> 90
A105: 104 | B105: 40 | D105: 1869795 | E105: 101 | K105: 31474.8825 | M105: 4 | O105: 1.072921898 | P105: 0.3 | T105: 104 | U105: 0 | Z105: 1130 | AA105: =D105*2 -> 3739590
A106: 105 | B106: 40 | D106: 2006144 | E106: 111 | K106: 33770.09067 | M106: 4 | O106: 1.071849279 | P106: 0.3 | S106: =D106*2 -> 4012288 | T106: 105 | U106: 111 | V106: =IF(MOD(A106,2)=0,0,S106) -> 4012288 | Z106: 150 | AA106: =Z106*E106/D106/4 -> 0.002074875981 | AE106: =ROUND(AA106+AE104,0) -> 90
A107: 106 | B107: 40 | D107: 2150284 | E107: 111 | K107: 36196.44733 | M107: 4 | O107: 1.070777162 | P107: 0.3 | T107: 106 | U107: 0 | Z107: 1150 | AA107: =D107*2 -> 4300568
A108: 107 | B108: 40 | D108: 2302475 | E108: 111 | K108: 38758.32917 | M108: 4 | O108: 1.069706729 | P108: 0.3 | S108: =D108*2 -> 4604950 | T108: 107 | U108: 111 | V108: =IF(MOD(A108,2)=0,0,S108) -> 4604950 | Z108: 150 | AA108: =Z108*E108/D108/4 -> 0.001807837219 | AE108: =ROUND(AA108+AE106,0) -> 90
A109: 108 | B109: 40 | D109: 2462973 | E109: 111 | K109: 41460.0455 | M109: 4 | O109: 1.068636968 | P109: 0.3 | T109: 108 | U109: 0 | Z109: 1170 | AA109: =D109*2 -> 4925946
A110: 109 | B110: 40 | D110: 2632024 | E110: 111 | K110: 44305.73733 | M110: 4 | O110: 1.067568153 | P110: 0.3 | S110: =D110*2 -> 5264048 | T110: 109 | U110: 111 | V110: =IF(MOD(A110,2)=0,0,S110) -> 5264048 | Z110: 150 | AA110: =Z110*E110/D110/4 -> 0.00158148254 | AE110: =ROUND(AA110+AE108,0) -> 90
A111: 110 | B111: 40 | D111: 2809865 | E111: 111 | K111: 47299.39417 | M111: 4 | O111: 1.066500704 | P111: 0.3 | T111: 110 | U111: 0 | Z111: 1190 | AA111: =D111*2 -> 5619730
A112: 111 | B112: 40 | D112: 2996723 | E112: 111 | K112: 50444.83717 | M112: 4 | O112: 1.065434143 | P112: 0.3 | S112: =D112*2 -> 5993446 | T112: 111 | U112: 111 | V112: =IF(MOD(A112,2)=0,0,S112) -> 5993446 | Z112: 150 | AA112: =Z112*E112/D112/4 -> 0.00138901727 | AE112: =ROUND(AA112+AE110,0) -> 90
A113: 112 | B113: 40 | D113: 3192811 | E113: 111 | K113: 53745.65183 | M113: 4 | O113: 1.064368671 | P113: 0.3 | T113: 112 | U113: 0 | Z113: 1210 | AA113: =D113*2 -> 6385622
A114: 113 | B114: 40 | D114: 3398328 | E114: 111 | K114: 57205.188 | M114: 4 | O114: 1.063304366 | P114: 0.3 | S114: =D114*2 -> 6796656 | T114: 113 | U114: 111 | V114: =IF(MOD(A114,2)=0,0,S114) -> 6796656 | Z114: 150 | AA114: =Z114*E114/D114/4 -> 0.001224867052 | AE114: =ROUND(AA114+AE112,0) -> 90
A115: 114 | B115: 40 | D115: 3613457 | E115: 111 | K115: 60826.52617 | M115: 4 | O115: 1.062240951 | P115: 0.3 | T115: 114 | U115: 0 | Z115: 1230 | AA115: =D115*2 -> 7226914
A116: 115 | B116: 40 | D116: 3838362 | E116: 121 | K116: 64612.427 | M116: 4 | O116: 1.061178701 | P116: 0.3 | S116: =D116*2 -> 7676724 | T116: 115 | U116: 121 | V116: =IF(MOD(A116,2)=0,0,S116) -> 7676724 | Z116: 150 | AA116: =Z116*E116/D116/4 -> 0.001182144884 | AE116: =ROUND(AA116+AE114,0) -> 90
A117: 116 | B117: 40 | D117: 4073188 | E117: 121 | K117: 68565.33133 | M117: 4 | O117: 1.06011753 | P117: 0.3 | T117: 116 | U117: 0 | Z117: 1250 | AA117: =D117*2 -> 8146376
A118: 117 | B118: 40 | D118: 4318058 | E118: 121 | K118: =K117*O117 -> 72687.30967 | M118: 4 | O118: 1.059057567 | P118: 0.3 | S118: =D118*2 -> 8636116 | T118: 117 | U118: 121 | V118: =IF(MOD(A118,2)=0,0,S118) -> 8636116 | Z118: 150 | AA118: =Z118*E118/D118/4 -> 0.001050819605 | AE118: =ROUND(AA118+AE116,0) -> 90
A119: 118 | B119: 40 | D119: 4573072 | E119: 121 | K119: 76980.04533 | M119: 4 | O119: 1.057998431 | P119: 0.3 | T119: 118 | U119: 0 | Z119: 1270 | AA119: =D119*2 -> 9146144
A120: 119 | B120: 40 | D120: 4838303 | E120: 121 | K120: 81444.76717 | M120: 4 | O120: 1.056940419 | P120: 0.3 | S120: =D120*2 -> 9676606 | T120: 119 | U120: 121 | V120: =IF(MOD(A120,2)=0,0,S120) -> 9676606 | Z120: 150 | AA120: =Z120*E120/D120/4 -> 0.0009378288214 | AE120: =ROUND(AA120+AE118,0) -> 90
A121: 120 | B121: 40 | D121: 5113798 | E121: 121 | K121: 86082.26633 | M121: 4 | O121: 1.055883514 | P121: 0.3 | T121: 120 | U121: 0 | Z121: 1290 | AA121: =D121*2 -> 10227596
A122: 121 | B122: 40 | D122: 5399575 | E122: 121 | K122: 90892.84583 | M122: 4 | O122: 1.054827648 | P122: 0.3 | S122: =D122*2 -> 10799150 | T122: 121 | U122: 121 | V122: =IF(MOD(A122,2)=0,0,S122) -> 10799150 | Z122: 150 | AA122: =Z122*E122/D122/4 -> 0.000840343916 | AE122: =ROUND(AA122+AE120,0) -> 90
A123: 122 | B123: 40 | D123: 5695621 | E123: 121 | K123: 95876.28683 | M123: 4 | O123: 1.053772714 | P123: 0.3 | T123: 122 | U123: 0 | Z123: 1310 | AA123: =D123*2 -> 11391242
A124: 123 | B124: 40 | D124: 6001890 | E124: 121 | K124: 101031.815 | M124: 4 | O124: 1.05271906 | P124: 0.3 | S124: =D124*2 -> 12003780 | T124: 123 | U124: 121 | V124: =IF(MOD(A124,2)=0,0,S124) -> 12003780 | Z124: 150 | AA124: =Z124*E124/D124/4 -> 0.0007560118563 | AE124: =ROUND(AA124+AE122,0) -> 90
A125: 124 | B125: 40 | D125: 6318304 | E125: 121 | K125: 106358.1173 | M125: 4 | O125: 1.051666238 | P125: 0.3 | T125: 124 | U125: 0 | Z125: 1330 | AA125: =D125*2 -> 12636608
A126: 125 | B126: 40 | D126: 6644747 | E126: 131 | K126: 111853.2412 | M126: 4 | O126: 1.050614568 | P126: 0.3 | S126: =D126*2 -> 13289494 | T126: 125 | U126: 131 | V126: =IF(MOD(A126,2)=0,0,S126) -> 13289494 | Z126: 150 | AA126: =Z126*E126/D126/4 -> 0.0007393058005 | AE126: =ROUND(AA126+AE124,0) -> 90
A127: 126 | B127: 40 | D127: 6981068 | E127: 131 | K127: 117514.6447 | M127: 4 | O127: 1.04956405 | P127: 0.3 | T127: 126 | U127: 0 | Z127: 1350 | AA127: =D127*2 -> 13962136
A128: 127 | B128: 40 | D128: 7327078 | E128: 131 | K128: 123339.1463 | M128: 4 | O128: 1.048514428 | P128: 0.3 | S128: =D128*2 -> 14654156 | T128: 127 | U128: 131 | V128: =IF(MOD(A128,2)=0,0,S128) -> 14654156 | Z128: 150 | AA128: =Z128*E128/D128/4 -> 0.0006704582645 | AE128: =ROUND(AA128+AE126,0) -> 90
A129: 128 | B129: 40 | D129: 7682547 | E129: 131 | K129: 129322.8745 | M129: 4 | O129: 1.047465899 | P129: 0.3 | T129: 128 | U129: 0 | Z129: 1370 | AA129: =D129*2 -> 15365094
A130: 129 | B130: 40 | D130: 8047206 | E130: 131 | K130: 135461.301 | M130: 4 | O130: 1.046418471 | P130: 0.3 | S130: =D130*2 -> 16094412 | T130: 129 | U130: 131 | V130: =IF(MOD(A130,2)=0,0,S130) -> 16094412 | Z130: 200 | AA130: =Z130*E130/D130/4 -> 0.0008139471016 | AE130: =ROUND(AA130+AE128,0) -> 90
A131: 130 | B131: 40 | D131: 8420745 | E131: =ROUND(D131/B131/K131*M131*(1+ROUND(A131/10,0)*$Q$2)/3,0) -> 131 | K131: 141749.2075 | M131: 4 | O131: 1.045371995 | P131: 0.3 | T131: 130 | U131: 0 | Z131: 1390 | AA131: =D131*2 -> 16841490
A132: 131 | B132: 40 | D132: 8802811 | E132: 131 | K132: 148180.6518 | M132: 4 | O132: 1.044326636 | P132: 0.3 | S132: =D132*2 -> 17605622 | T132: 131 | U132: 131 | V132: =IF(MOD(A132,2)=0,0,S132) -> 17605622 | Z132: 200 | AA132: =Z132*E132/D132/4 -> 0.0007440804988 | AE132: =ROUND(AA132+AE130,0) -> 90
A133: 132 | B133: 40 | D133: 9193010 | E133: 131 | K133: 154749.0017 | M133: 4 | O133: 1.043282342 | P133: 0.3 | T133: 132 | U133: =IF(MOD(A133,2)=0,0,E133) -> 0 | Z133: 1410 | AA133: =D133*2 -> 18386020
A134: 133 | B134: 40 | D134: 9590905 | E134: 131 | K134: 161446.9008 | M134: 4 | O134: 1.04223908 | P134: 0.3 | S134: =D134*2 -> 19181810 | T134: 133 | U134: 131 | V134: =IF(MOD(A134,2)=0,0,S134) -> 19181810 | Z134: 200 | AA134: =Z134*E134/D134/4 -> 0.0006829386799 | AE134: =ROUND(AA134+AE132,0) -> 90
A135: 134 | B135: 40 | D135: 9996016 | E135: 131 | K135: 168266.2693 | M135: 4 | O135: 1.041196813 | P135: 0.3 | T135: 134 | U135: 0 | Z135: 1430 | AA135: =D135*2 -> 19992032
A136: 135 | B136: 40 | D136: 10407820 | E136: 141 | K136: 175198.3033 | M136: 4 | O136: 1.040155575 | P136: 0.3 | S136: =D136*2 -> 20815640 | T136: 135 | U136: 141 | V136: =IF(MOD(A136,2)=0,0,S136) -> 20815640 | Z136: 200 | AA136: =Z136*E136/D136/4 -> 0.0006773752813 | AE136: =ROUND(AA136+AE134,0) -> 90
A137: 136 | B137: 40 | D137: 10825752 | E137: 141 | K137: 182233.492 | M137: 4 | O137: 1.039115435 | P137: 0.3 | T137: 136 | U137: 0 | Z137: 1450 | AA137: =D137*2 -> 21651504
A138: 137 | B138: 40 | D138: 11249206 | E138: 141 | K138: 189361.6343 | M138: 4 | O138: 1.038076376 | P138: 0.3 | S138: =D138*2 -> 22498412 | T138: 137 | U138: 141 | V138: =IF(MOD(A138,2)=0,0,S138) -> 22498412 | Z138: 200 | AA138: =Z138*E138/D138/4 -> 0.0006267108985 | AE138: =ROUND(AA138+AE136,0) -> 90
A139: 138 | B139: 40 | D139: 11677535 | E139: 141 | K139: 196571.8392 | M139: 4 | O139: 1.037038296 | P139: 0.3 | T139: 138 | U139: 0 | Z139: 1470 | AA139: =D139*2 -> 23355070
A140: 139 | B140: 40 | D140: 12110051 | E140: 141 | K140: 203852.5252 | M140: 4 | O140: 1.036001252 | P140: 0.3 | S140: =D140*2 -> 24220102 | T140: 139 | U140: 141 | V140: =IF(MOD(A140,2)=0,0,S140) -> 24220102 | Z140: 200 | AA140: =Z140*E140/D140/4 -> 0.0005821610495 | AE140: =ROUND(AA140+AE138,0) -> 90
A141: 140 | B141: 40 | D141: 12546028 | E141: 141 | K141: 211191.4713 | M141: 4 | O141: 1.03496525 | P141: 0.3 | T141: 140 | U141: 0 | Z141: 1490 | AA141: =D141*2 -> 25092056
A142: 141 | B142: 40 | D142: 12984703 | E142: 141 | K142: 218575.8338 | M142: 4 | O142: 1.033930233 | P142: 0.3 | S142: =D142*2 -> 25969406 | T142: 141 | U142: 141 | V142: =IF(MOD(A142,2)=0,0,S142) -> 25969406 | Z142: 200 | AA142: =Z142*E142/D142/4 -> 0.0005429465734 | AE142: =ROUND(AA142+AE140,0) -> 90
A143: 142 | B143: 40 | D143: 13425277 | E143: 141 | K143: 225992.1628 | M143: 4 | O143: 1.032896304 | P143: 0.3 | T143: 142 | U143: 0 | Z143: 1510 | AA143: =D143*2 -> 26850554
A144: 143 | B144: 40 | D144: 13866919 | E144: 141 | K144: 233426.4698 | M144: 4 | O144: 1.031863459 | P144: 0.3 | S144: =D144*2 -> 27733838 | T144: 143 | U144: 141 | V144: =IF(MOD(A144,2)=0,0,S144) -> 27733838 | Z144: 200 | AA144: =Z144*E144/D144/4 -> 0.00050840421 | AE144: =ROUND(AA144+AE142,0) -> 90
A145: 144 | B145: 40 | D145: 14308767 | E145: 141 | K145: 240864.2445 | M145: 4 | O145: =D146/D145 -> 1.030831587 | P145: 0.3 | T145: 144 | U145: 0 | Z145: 1530 | AA145: =D145*2 -> 28617534
A146: 145 | B146: 40 | D146: 14749929 | E146: 150 | K146: 248290.4715 | M146: 4 | O146: 1.029800754 | P146: 0.3 | S146: =D146*2 -> 29499858 | T146: 145 | U146: 150 | V146: =IF(MOD(A146,2)=0,0,S146) -> 29499858 | Z146: 200 | AA146: =Z146*E146/D146/4 -> 0.0005084770239 | AE146: =ROUND(AA146+AE144,0) -> 90
A147: 146 | B147: 40 | D147: 15189488 | E147: 150 | K147: 255689.7147 | M147: 4 | O147: 1.02877095 | P147: 0.3 | T147: 146 | U147: 0 | Z147: 1550 | AA147: =D147*2 -> 30378976
A148: 147 | B148: 40 | D148: 15626504 | E148: 150 | K148: 263046.1507 | M148: 4 | O148: 1.027742162 | P148: 0.3 | S148: =D148*2 -> 31253008 | T148: 147 | U148: 150 | V148: =IF(MOD(A148,2)=0,0,S148) -> 31253008 | Z148: 200 | AA148: =Z148*E148/D148/4 -> 0.0004799538016 | AE148: =ROUND(AA148+AE146,0) -> 90
A149: 148 | B149: 40 | D149: 16060017 | E149: 150 | K149: 270343.6195 | M149: 4 | O149: 1.026714418 | P149: 0.3 | T149: 148 | U149: 0 | Z149: 1570 | AA149: =D149*2 -> 32120034
A150: 149 | B150: 40 | D150: 16489051 | E150: 150 | K150: 277565.6918 | M150: 4 | O150: 1.025687712 | P150: 0.3 | S150: =D150*2 -> 32978102 | T150: 149 | U150: 150 | V150: =IF(MOD(A150,2)=0,0,S150) -> 32978102 | Z150: 200 | AA150: =Z150*E150/D150/4 -> 0.0004548472802 | AE150: =ROUND(AA150+AE148,0) -> 90
A151: 150 | B151: 40 | D151: 16912617 | E151: 150 | K151: 284695.7195 | M151: 4 | O151: 1.024662002 | P151: 0.3 | T151: 150 | U151: 0 | Z151: 1590 | AA151: =D151*2 -> 33825234
A152: 151 | B152: 40 | D152: 17329716 | E152: 150 | K152: 291716.886 | M152: 4 | O152: 1.023637375 | P152: 0.3 | S152: =D152*2 -> 34659432 | T152: 151 | U152: =IF(MOD(A152,2)=0,0,E152) -> 150 | V152: =IF(MOD(A152,2)=0,0,S152) -> 34659432 | Z152: 200 | AA152: =Z152*E152/D152/4 -> 0.0004327826261 | AE152: =ROUND(AA152+AE150,0) -> 90
A153: 152 | B153: 40 | D153: 17739345 | E153: 150 | K153: 298612.3075 | M153: 4 | O153: 1.022613744 | P153: 0.3 | T153: 152 | U153: 0 | AA153: =D153*2 -> 35478690
A154: 153 | B154: 40 | D154: 18140498 | E154: 150 | K154: 305365.0497 | M154: 4 | O154: 1.021591083 | P154: 0.3 | S154: =D154*2 -> 36280996 | T154: 153 | U154: 150 | V154: =IF(MOD(A154,2)=0,0,S154) -> 36280996 | Z154: 200 | AA154: =Z154*E154/D154/4 -> 0.0004134395869 | AE154: =ROUND(AA154+AE152,0) -> 90
A155: 154 | B155: 40 | D155: 18532171 | E155: 150 | K155: 311958.2118 | M155: 4 | O155: 1.020569527 | P155: 0.3 | T155: 154 | U155: 0 | AA155: =D155*2 -> 37064342
A156: 155 | B156: 40 | D156: 18913369 | E156: 160 | K156: 318375.0448 | M156: 4 | O156: 1.019548923 | P156: 0.3 | S156: =D156*2 -> 37826738 | T156: 155 | U156: 160 | V156: =IF(MOD(A156,2)=0,0,S156) -> 37826738 | Z156: 200 | AA156: =Z156*E156/D156/4 -> 0.0004229812256 | AE156: =ROUND(AA156+AE154,0) -> 90
A157: 156 | B157: 40 | D157: 19283105 | E157: 160 | K157: 324598.9342 | M157: 4 | O157: 1.018529381 | P157: 0.3 | T157: 156 | U157: 0 | AA157: =D157*2 -> 38566210
A158: 157 | B158: 40 | D158: 19640409 | E158: 160 | K158: 330613.5515 | M158: 4 | O158: 1.017510888 | P158: 0.3 | S158: =D158*2 -> 39280818 | T158: 157 | U158: 160 | V158: =IF(MOD(A158,2)=0,0,S158) -> 39280818 | Z158: 200 | AA158: =Z158*E158/D158/4 -> 0.0004073234931 | AE158: =ROUND(AA158+AE156,0) -> 90
A159: 158 | B159: 40 | D159: 19984330 | E159: 160 | K159: 336402.8883 | M159: 4 | O159: 1.016493373 | P159: 0.3 | T159: 158 | U159: 0 | AA159: =D159*2 -> 39968660
A160: 159 | B160: 40 | D160: 20313939 | E160: 160 | K160: 341951.3065 | M160: 4 | O160: 1.01547686 | P160: 0.3 | S160: =D160*2 -> 40627878 | T160: 159 | U160: 160 | V160: =IF(MOD(A160,2)=0,0,S160) -> 40627878 | Z160: 200 | AA160: =Z160*E160/D160/4 -> 0.0003938182545 | AE160: =ROUND(AA160+AE158,0) -> 90
A161: 160 | B161: 40 | D161: 20628335 | E161: 160 | K161: 347243.6392 | M161: 4 | O161: 1.014461371 | P161: 0.3 | T161: 160 | U161: 0 | AA161: =D161*2 -> 41256670
A162: 161 | B162: 40 | D162: 20926649 | E162: 160 | K162: 352265.2582 | M162: 4 | O162: 1.013446921 | P162: 0.3 | S162: =D162*2 -> 41853298 | T162: 161 | U162: 160 | V162: =IF(MOD(A162,2)=0,0,S162) -> 41853298 | Z162: 200 | AA162: =Z162*E162/D162/4 -> 0.0003822876754 | AE162: =ROUND(AA162+AE160,0) -> 90
A163: 162 | B163: 40 | D163: 21208048 | E163: 160 | K163: 357002.1413 | M163: 4 | O163: 1.012433488 | P163: 0.3 | T163: 162 | U163: 0 | AA163: =D163*2 -> 42416096
A164: 163 | B164: 40 | D164: 21471738 | E164: 160 | K164: 361440.923 | M164: 4 | O164: 1.01142106 | P164: 0.3 | S164: =D164*2 -> 42943476 | T164: 163 | U164: 160 | V164: =IF(MOD(A164,2)=0,0,S164) -> 42943476 | Z164: 200 | AA164: =Z164*E164/D164/4 -> 0.0003725827877 | AE164: =ROUND(AA164+AE162,0) -> 90
A165: 164 | B165: 40 | D165: 21716968 | E165: 160 | K165: 365568.9613 | M165: 4 | O165: 1.010409602 | P165: 0.3 | T165: 164 | U165: 0 | AA165: =D165*2 -> 43433936
A166: 165 | B166: 40 | D166: 21943033 | E166: 170 | K166: 369374.3888 | M166: 4 | O166: 1.009904419 | P166: 0.3 | S166: =D166*2 -> 43886066 | T166: 165 | U166: 170 | V166: =IF(MOD(A166,2)=0,0,S166) -> 43886066 | Z166: 200 | AA166: =Z166*E166/D166/4 -> 0.0003873666872 | AE166: =ROUND(AA166+AE164,0) -> 90
A167: 166 | B167: 40 | D167: 22160366 | E167: 170 | K167: 373032.8277 | M167: 4 | O167: 1.009399484 | P167: 0.3 | T167: 166 | U167: 0 | AA167: =D167*2 -> 44320732
A168: 167 | B168: 40 | D168: 22368662 | E168: 170 | K168: 376539.1437 | M168: 4 | O168: 1.008894765 | P168: 0.3 | S168: =D168*2 -> 44737324 | T168: 167 | U168: 170 | V168: =IF(MOD(A168,2)=0,0,S168) -> 44737324 | Z168: 200 | AA168: =Z168*E168/D168/4 -> 0.0003799959068 | AE168: =ROUND(AA168+AE166,0) -> 90
A169: 168 | B169: 40 | D169: 22567626 | E169: 170 | K169: 379888.371 | M169: 4 | O169: 1.008390338 | P169: 0.3 | T169: 168 | U169: 0 | AA169: =D169*2 -> 45135252
A170: 169 | B170: 40 | D170: 22756976 | E170: 170 | K170: 383075.7627 | M170: 4 | O170: 1.007886109 | P170: 0.3 | S170: =D170*2 -> 45513952 | T170: 169 | U170: 170 | V170: =IF(MOD(A170,2)=0,0,S170) -> 45513952 | Z170: 200 | AA170: =Z170*E170/D170/4 -> 0.0003735118409 | AE170: =ROUND(AA170+AE168,0) -> 90
A171: 170 | B171: 40 | D171: 22936440 | E171: 170 | K171: 386096.74 | M171: 4 | O171: 1.007382183 | P171: 0.3 | T171: 170 | U171: 0 | AA171: =D171*2 -> 45872880
A172: 171 | B172: 40 | D172: 23105761 | E172: 170 | K172: 388946.9768 | M172: 4 | O172: 1.006878501 | P172: 0.3 | S172: =D172*2 -> 46211522 | T172: 171 | U172: 170 | V172: =IF(MOD(A172,2)=0,0,S172) -> 46211522 | Z172: 200 | AA172: =Z172*E172/D172/4 -> 0.0003678736225 | AE172: =ROUND(AA172+AE170,0) -> 90
A173: 172 | B173: 40 | D173: 23264694 | E173: 170 | K173: 391622.349 | M173: 4 | O173: 1.006375068 | P173: 0.3 | T173: 172 | U173: 0 | AA173: =D173*2 -> 46529388
A174: 173 | B174: 40 | D174: 23413008 | E174: 170 | K174: 394118.968 | M174: 4 | O174: 1.005871864 | P174: 0.3 | S174: =D174*2 -> 46826016 | T174: 173 | U174: 170 | V174: =IF(MOD(A174,2)=0,0,S174) -> 46826016 | Z174: 200 | AA174: =Z174*E174/D174/4 -> 0.0003630460469 | AE174: =ROUND(AA174+AE172,0) -> 90
A175: 174 | B175: 40 | D175: 23550486 | E175: 170 | K175: 396433.181 | M175: 4 | O175: 1.005368934 | P175: 0.3 | T175: 174 | U175: 0 | AA175: =D175*2 -> 47100972
A176: 175 | B176: 40 | D176: 23676927 | E176: 180 | K176: 398561.6045 | M176: 4 | O176: 1.006374307 | P176: 0.3 | S176: =D176*2 -> 47353854 | T176: 175 | U176: 180 | V176: =IF(MOD(A176,2)=0,0,S176) -> 47353854 | Z176: 200 | AA176: =Z176*E176/D176/4 -> 0.0003801168961 | AE176: =ROUND(AA176+AE174,0) -> 90
A177: 176 | B177: 40 | D177: 23827851 | E177: 180 | K177: 401102.1585 | M177: 4 | O177: 1.007380649 | P177: 0.3 | T177: 176 | U177: 0 | AA177: =D177*2 -> 47655702
A178: 177 | B178: 40 | D178: 24003716 | E178: 180 | K178: 404062.5527 | M178: 4 | O178: 1.008388035 | P178: 0.3 | S178: =D178*2 -> 48007432 | T178: 177 | U178: 180 | V178: =IF(MOD(A178,2)=0,0,S178) -> 48007432 | Z178: 200 | AA178: =Z178*E178/D178/4 -> 0.0003749419465 | AE178: =ROUND(AA178+AE176,0) -> 90
A179: 178 | B179: 40 | D179: 24205060 | E179: 180 | K179: 407451.8433 | M179: 4 | O179: 1.009396424 | P179: 0.3 | T179: 178 | U179: 0 | AA179: =D179*2 -> 48410120
A180: 179 | B180: 40 | D180: 24432501 | E180: 180 | K180: 411280.4335 | M180: 4 | O180: 1.010405852 | P180: 0.3 | S180: =D180*2 -> 48865002 | T180: 179 | U180: 180 | V180: =IF(MOD(A180,2)=0,0,S180) -> 48865002 | Z180: 200 | AA180: =Z180*E180/D180/4 -> 0.0003683617981 | AE180: =ROUND(AA180+AE178,0) -> 90
A181: 180 | B181: 40 | D181: 24686742 | E181: 180 | K181: 415560.157 | M181: 4 | O181: 1.011416249 | P181: 0.3 | T181: 180 | U181: 0 | AA181: =D181*2 -> 49373484
A182: 181 | B182: 40 | D182: 24968572 | E182: 180 | K182: =K181*O181 -> 420304.2953 | M182: 4 | O182: 1.012427663 | P182: 0.3 | S182: =D182*2 -> 49937144 | T182: 181 | U182: 180 | V182: =IF(MOD(A182,2)=0,0,S182) -> 49937144 | Z182: 200 | AA182: =Z182*E182/D182/4 -> 0.0003604531328 | AE182: =ROUND(AA182+AE180,0) -> 90
A183: 182 | B183: 40 | D183: 25278873 | E183: 180 | K183: 425527.6955 | M183: 4 | O183: 1.013440077 | P183: 0.3 | T183: 182 | U183: 0 | AA183: =D183*2 -> 50557746
A184: 183 | B184: 40 | D184: 25618623 | E184: 180 | K184: 431246.8205 | M184: 4 | O184: 1.014453509 | P184: 0.3 | S184: =D184*2 -> 51237246 | T184: 183 | U184: =IF(MOD(A184,2)=0,0,E184) -> 180 | V184: =IF(MOD(A184,2)=0,0,S184) -> 51237246 | Z184: 200 | AA184: =Z184*E184/D184/4 -> 0.0003513069379 | AE184: =ROUND(AA184+AE182,0) -> 90
A185: 184 | B185: 40 | D185: 25988902 | E185: 180 | K185: 437479.8503 | M185: 4 | O185: 1.015467987 | P185: 0.3 | T185: 184 | U185: 0 | AA185: =D185*2 -> 51977804
A186: 185 | B186: 40 | D186: 26390898 | E186: 190 | K186: 444246.783 | M186: 4 | O186: 1.016483448 | P186: 0.3 | S186: =D186*2 -> 52781796 | T186: 185 | U186: 190 | V186: =IF(MOD(A186,2)=0,0,S186) -> 52781796 | Z186: 200 | AA186: =Z186*E186/D186/4 -> 0.0003599725936 | AE186: =ROUND(AA186+AE184,0) -> 90
A187: 186 | B187: 40 | D187: 26825911 | E187: 190 | K187: 451569.5018 | M187: 4 | O187: 1.017499946 | P187: 0.3 | T187: 186 | U187: 0 | AA187: =D187*2 -> 53651822
A188: 187 | B188: 40 | D188: 27295363 | E188: 190 | K188: 459471.9438 | M188: 4 | O188: 1.018517431 | P188: 0.3 | S188: =D188*2 -> 54590726 | T188: 187 | U188: 190 | V188: =IF(MOD(A188,2)=0,0,S188) -> 54590726 | Z188: 200 | AA188: =Z188*E188/D188/4 -> 0.0003480444645 | AE188: =ROUND(AA188+AE186,0) -> 90
A189: 188 | B189: 40 | D189: 27800803 | E189: 190 | K189: 467980.1838 | M189: 4 | O189: 1.019535946 | P189: 0.3 | T189: 188 | U189: 0 | AA189: =D189*2 -> 55601606
A190: 189 | B190: 40 | D190: 28343918 | E190: 190 | K190: 477122.6197 | M190: 4 | O190: 1.020555486 | P190: 0.3 | S190: =D190*2 -> 56687836 | T190: 189 | U190: 190 | V190: =IF(MOD(A190,2)=0,0,S190) -> 56687836 | Z190: 200 | AA190: =Z190*E190/D190/4 -> 0.0003351689064 | AE190: =ROUND(AA190+AE188,0) -> 90
A191: 190 | B191: 40 | D191: 28926541 | E191: 190 | K191: 486930.1068 | M191: 4 | O191: 1.021576033 | P191: 0.3 | T191: 190 | U191: 0 | AA191: =D191*2 -> 57853082
A192: 191 | B192: 40 | D192: 29550661 | E192: 190 | K192: 497436.1268 | M192: 4 | O192: 1.022597599 | P192: 0.3 | S192: =D192*2 -> 59101322 | T192: 191 | U192: 190 | V192: =IF(MOD(A192,2)=0,0,S192) -> 59101322 | Z192: 200 | AA192: =Z192*E192/D192/4 -> 0.0003214818105 | AE192: =ROUND(AA192+AE190,0) -> 90
A193: 192 | B193: 40 | D193: 30218435 | E193: 190 | K193: 508676.9892 | M193: 4 | O193: 1.023620217 | P193: 0.3 | T193: 192 | U193: 0 | AA193: =D193*2 -> 60436870
A194: 193 | B194: 40 | D194: 30932201 | E194: 190 | K194: 520692.0502 | M194: 4 | O194: 1.024643833 | P194: 0.3 | S194: =D194*2 -> 61864402 | T194: 193 | U194: 190 | V194: =IF(MOD(A194,2)=0,0,S194) -> 61864402 | Z194: 200 | AA194: =Z194*E194/D194/4 -> 0.0003071233114 | AE194: =ROUND(AA194+AE192,0) -> 90
A195: 194 | B195: 40 | D195: 31694489 | E195: =ROUND(D195/B195/K195*M195*(1+ROUND(A195/10,0)*$Q$2)/3,0) -> 190 | K195: 533523.8982 | M195: 4 | O195: 1.025668469 | P195: 0.3 | T195: 194 | U195: 0 | AA195: =D195*2 -> 63388978
A196: 195 | B196: 40 | D196: 32508038 | E196: 200 | K196: 547218.6397 | M196: 4 | O196: 1.026694136 | P196: 0.3 | S196: =D196*2 -> 65016076 | T196: 195 | U196: 200 | V196: =IF(MOD(A196,2)=0,0,S196) -> 65016076 | Z196: 200 | AA196: =Z196*E196/D196/4 -> 0.0003076162271 | AE196: =ROUND(AA196+AE194,0) -> 90
A197: 196 | B197: 40 | D197: 33375812 | E197: 200 | K197: 561826.1687 | M197: 4 | O197: 1.027720824 | P197: 0.3 | T197: 196 | U197: 0 | AA197: =D197*2 -> 66751624
A198: 197 | B198: 40 | D198: 34301017 | E198: 200 | K198: 577400.4528 | M198: 4 | O198: 1.028748565 | P198: 0.3 | S198: =D198*2 -> 68602034 | T198: 197 | U198: 200 | V198: =IF(MOD(A198,2)=0,0,S198) -> 68602034 | Z198: 200 | AA198: =Z198*E198/D198/4 -> 0.0002915365454 | AE198: =ROUND(AA198+AE196,0) -> 90
A199: 198 | B199: 40 | D199: 35287122 | E199: 200 | K199: 593999.887 | M199: 4 | O199: 1.029777294 | P199: 0.3 | T199: 198 | U199: 0 | AA199: =D199*2 -> 70574244
A200: 199 | B200: 40 | D200: 36337877 | E200: 200 | K200: 611687.5962 | M200: 4 | O200: 1.030807083 | P200: 0.3 | S200: =D200*2 -> 72675754 | T200: 199 | U200: 200 | V200: =IF(MOD(A200,2)=0,0,S200) -> 72675754 | Z200: 200 | AA200: =Z200*E200/D200/4 -> 0.0002751949433 | AE200: =ROUND(AA200+AE198,0) -> 90
... 105 more rows
